Workbook

Sheet CN 2019_BIENES
E1: UNIDAD DE GESTION EDUCATIVA LOCAL PUNO UE 311
E2: CUADRO DE NECESIDADES 2019 | R2: CARV($E$4;CENTRO_COSTO!$C$2:$K$888;10;FALSO)
A4: Codigo Centro de Costo | E4: 1434.04.04 | G4: Numero de Celular | H4: 980890282 | K4: Nº Personas | O4: 1
A6: Centro de Costos | E6: =+VLOOKUP($E$4,CENTRO_COSTO!$C$2:$D$888,2,FALSE) -> OFICINA DE CONTABILIDAD | K6: Actividad de POI | R6: =IF(E4="","",VLOOKUP(E4,PERSONAL,9,FALSE)) -> 906.996
A8: Nombres y Apellidos | E8: =IF(E4="","",VLOOKUP(E4,PERSONAL,4,FALSE)) -> APAZAROJASJAVIER | G8: Correo Electronico | H8: 1234@hotmail.com | K8: GESTION ADMINISTRATIVA | R8: =SUM(R11:R81) -> 32
A10: CODIGO INTERNO | B10: Clasificador de Gasto | D10: CATALOGO SIGA | E10: DESCRIPCIÓN | I10: Unidad de medida | J10: Precio Estimado | K10: I DOTACION ENE - ABR | M10: II DOTACION JUN - AGOT | O10: III DOTACION SET - DIC | Q10: CANTIDAD | R10: TOTAL | S10: OBSERVACIONES
A11: 3 | D11: =IF(A11="","",VLOOKUP(A11,CATALOGO,2,FALSE)) -> 133000140079 | E11: =IF(A11="","",VLOOKUP(A11,CATALOGO,3,FALSE)) -> AMBIENTADOR EN SPRAY X 360 mL | I11: =IF(A11="","",VLOOKUP(A11,CATALOGO,4,FALSE)) -> UNIDAD | J11: =IF(D11="","",VLOOKUP(D11,CATALOGO!$B$2:$E$333,4,FALSE)) -> 7 | K11: 1 | M11: 1 | Q11: =IF(A11="","",(N11+O11+P11+K11+M11)) -> 2 | R11: =IF(J11="","",(J11*Q11)) -> 14
A12: 15 | D12: 716000010212 | E12: =IF(A12="","",VLOOKUP(A12,CATALOGO,3,FALSE)) -> BOLIGRAFO (LAPICERO) DE TINTA SECA PUNTA MEDIA COLOR AZUL | I12: =IF(A12="","",VLOOKUP(A12,CATALOGO,4,FALSE)) -> UNIDAD | J12: =IF(D12="","",VLOOKUP(D12,CATALOGO!$B$2:$E$333,4,FALSE)) -> 0.4 | K12: 10 | M12: 10 | O12: 10 | Q12: =IF(A12="","",(N12+O12+P12+K12+M12)) -> 30 | R12: 12
A13: 16 | D13: 716000010213 | E13: =IF(A13="","",VLOOKUP(A13,CATALOGO,3,FALSE)) -> BOLIGRAFO (LAPICERO) DE TINTA SECA PUNTA MEDIA COLOR NEGRO | I13: UNIDAD | J13: =IF(D13="","",VLOOKUP(D13,CATALOGO!$B$2:$E$333,4,FALSE)) -> 0.4 | K13: 5 | M13: 5 | O13: 5 | Q13: 15 | R13: 6
E14: =IF(A14="","",VLOOKUP(A14,CATALOGO,3,FALSE)) ->  | J14: =IF(D14="","",VLOOKUP(D14,CATALOGO!$B$2:$E$333,4,FALSE)) ->  | Q14: =IF(A14="","",(N14+O14+P14+K14+M14)) -> 
J15: =IF(D15="","",VLOOKUP(D15,CATALOGO!$B$2:$E$333,4,FALSE)) -> 
J16: =IF(D16="","",VLOOKUP(D16,CATALOGO!$B$2:$E$333,4,FALSE)) ->  | R16: =IF(J16="","",(J16*Q16)) -> 
J17: =IF(D17="","",VLOOKUP(D17,CATALOGO!$B$2:$E$333,4,FALSE)) -> 
J18: =IF(D18="","",VLOOKUP(D18,CATALOGO!$B$2:$E$333,5,FALSE)) -> 
E19: =IF(A19="","",VLOOKUP(A19,CATALOGO,3,FALSE)) ->  | J19: =IF(D19="","",VLOOKUP(D19,CATALOGO!$B$2:$E$333,4,FALSE)) -> 
J20: =IF(D20="","",VLOOKUP(D20,CATALOGO!$B$2:$E$333,4,FALSE)) -> 
J21: =IF(D21="","",VLOOKUP(D21,CATALOGO!$B$2:$E$333,4,FALSE)) -> 
J22: =IF(D22="","",VLOOKUP(D22,CATALOGO!$B$2:$E$333,4,FALSE)) -> 
J23: =IF(D23="","",VLOOKUP(D23,CATALOGO!$B$2:$E$333,4,FALSE)) -> 
J24: =IF(D24="","",VLOOKUP(D24,CATALOGO!$B$2:$E$333,4,FALSE)) -> 
J25: =IF(D25="","",VLOOKUP(D25,CATALOGO!$B$2:$E$333,4,FALSE)) -> 
J26: =IF(D26="","",VLOOKUP(D26,CATALOGO!$B$2:$E$333,4,FALSE)) -> 
J27: =IF(D27="","",VLOOKUP(D27,CATALOGO!$B$2:$E$333,4,FALSE)) -> 
J28: =IF(D28="","",VLOOKUP(D28,CATALOGO!$B$2:$E$333,4,FALSE)) -> 
J29: =IF(D29="","",VLOOKUP(D29,CATALOGO!$B$2:$E$333,4,FALSE)) -> 
J30: =IF(D30="","",VLOOKUP(D30,CATALOGO!$B$2:$E$333,4,FALSE)) -> 
J31: =IF(D31="","",VLOOKUP(D31,CATALOGO!$B$2:$E$333,4,FALSE)) -> 
J32: =IF(D32="","",VLOOKUP(D32,CATALOGO!$B$2:$E$333,4,FALSE)) -> 
J33: =IF(D33="","",VLOOKUP(D33,CATALOGO!$B$2:$E$333,4,FALSE)) -> 
J34: =IF(D34="","",VLOOKUP(D34,CATALOGO!$B$2:$E$333,4,FALSE)) -> 
J35: =IF(D35="","",VLOOKUP(D35,CATALOGO!$B$2:$E$333,4,FALSE)) -> 
J36: =IF(D36="","",VLOOKUP(D36,CATALOGO!$B$2:$E$333,4,FALSE)) -> 
J37: =IF(D37="","",VLOOKUP(D37,CATALOGO!$B$2:$E$333,4,FALSE)) -> 
J38: =IF(D38="","",VLOOKUP(D38,CATALOGO!$B$2:$E$333,4,FALSE)) -> 
J39: =IF(D39="","",VLOOKUP(D39,CATALOGO!$B$2:$E$333,4,FALSE)) -> 
J40: =IF(D40="","",VLOOKUP(D40,CATALOGO!$B$2:$E$333,4,FALSE)) -> 
J41: =IF(D41="","",VLOOKUP(D41,CATALOGO!$B$2:$E$333,4,FALSE)) -> 
J42: =IF(D42="","",VLOOKUP(D42,CATALOGO!$B$2:$E$333,4,FALSE)) -> 
J43: =IF(D43="","",VLOOKUP(D43,CATALOGO!$B$2:$E$333,4,FALSE)) -> 
J44: =IF(D44="","",VLOOKUP(D44,CATALOGO!$B$2:$E$333,4,FALSE)) -> 
J45: =IF(D45="","",VLOOKUP(D45,CATALOGO!$B$2:$E$333,4,FALSE)) -> 
J46: =IF(D46="","",VLOOKUP(D46,CATALOGO!$B$2:$E$333,4,FALSE)) -> 
J47: =IF(D47="","",VLOOKUP(D47,CATALOGO!$B$2:$E$333,4,FALSE)) -> 
J48: =IF(D48="","",VLOOKUP(D48,CATALOGO!$B$2:$E$333,4,FALSE)) -> 
J49: =IF(D49="","",VLOOKUP(D49,CATALOGO!$B$2:$E$333,4,FALSE)) -> 
J50: =IF(D50="","",VLOOKUP(D50,CATALOGO!$B$2:$E$333,4,FALSE)) -> 
J51: =IF(D51="","",VLOOKUP(D51,CATALOGO!$B$2:$E$333,4,FALSE)) -> 
J52: =IF(D52="","",VLOOKUP(D52,CATALOGO!$B$2:$E$333,4,FALSE)) -> 
J53: =IF(D53="","",VLOOKUP(D53,CATALOGO!$B$2:$E$333,4,FALSE)) -> 
J54: =IF(D54="","",VLOOKUP(D54,CATALOGO!$B$2:$E$333,4,FALSE)) -> 
J55: =IF(D55="","",VLOOKUP(D55,CATALOGO!$B$2:$E$333,4,FALSE)) -> 
J56: =IF(D56="","",VLOOKUP(D56,CATALOGO!$B$2:$E$333,4,FALSE)) -> 
J57: =IF(D57="","",VLOOKUP(D57,CATALOGO!$B$2:$E$333,4,FALSE)) -> 
J58: =IF(D58="","",VLOOKUP(D58,CATALOGO!$B$2:$E$333,4,FALSE)) -> 
J59: =IF(D59="","",VLOOKUP(D59,CATALOGO!$B$2:$E$333,4,FALSE)) -> 
J60: =IF(D60="","",VLOOKUP(D60,CATALOGO!$B$2:$E$333,4,FALSE)) -> 
J61: =IF(D61="","",VLOOKUP(D61,CATALOGO!$B$2:$E$333,4,FALSE)) -> 
J62: =IF(D62="","",VLOOKUP(D62,CATALOGO!$B$2:$E$333,4,FALSE)) -> 
J63: =IF(D63="","",VLOOKUP(D63,CATALOGO!$B$2:$E$333,4,FALSE)) -> 
J64: =IF(D64="","",VLOOKUP(D64,CATALOGO!$B$2:$E$333,4,FALSE)) -> 
J65: =IF(D65="","",VLOOKUP(D65,CATALOGO!$B$2:$E$333,4,FALSE)) -> 
J66: =IF(D66="","",VLOOKUP(D66,CATALOGO!$B$2:$E$333,4,FALSE)) -> 
J67: =IF(D67="","",VLOOKUP(D67,CATALOGO!$B$2:$E$333,4,FALSE)) -> 
J68: =IF(D68="","",VLOOKUP(D68,CATALOGO!$B$2:$E$333,4,FALSE)) -> 
J69: =IF(D69="","",VLOOKUP(D69,CATALOGO!$B$2:$E$333,4,FALSE)) -> 
J70: =IF(D70="","",VLOOKUP(D70,CATALOGO!$B$2:$E$333,4,FALSE)) -> 
J71: =IF(D71="","",VLOOKUP(D71,CATALOGO!$B$2:$E$333,4,FALSE)) -> 
J72: =IF(D72="","",VLOOKUP(D72,CATALOGO!$B$2:$E$333,4,FALSE)) -> 
J73: =IF(D73="","",VLOOKUP(D73,CATALOGO!$B$2:$E$333,4,FALSE)) -> 
J74: =IF(D74="","",VLOOKUP(D74,CATALOGO!$B$2:$E$333,4,FALSE)) -> 
D75: =IF(A75="","",VLOOKUP(A75,CATALOGO,2,FALSE)) ->  | I75: =IF(A75="","",VLOOKUP(A75,CATALOGO,4,FALSE)) ->  | J75: =IF(D75="","",VLOOKUP(D75,CATALOGO!$B$2:$E$333,4,FALSE)) ->  | R75: =IF(J75="","",(J75*Q75)) -> 
E76: =IF(A76="","",VLOOKUP(A76,CATALOGO,3,FALSE)) ->  | J76: =IF(D76="","",VLOOKUP(D76,CATALOGO!$B$2:$E$333,4,FALSE)) ->  | Q76: =IF(A76="","",(N76+O76+P76+K76+M76)) -> 
J77: =IF(D77="","",VLOOKUP(D77,CATALOGO!$B$2:$E$333,4,FALSE)) -> 
J78: =IF(D78="","",VLOOKUP(D78,CATALOGO!$B$2:$E$333,4,FALSE)) -> 
J79: =IF(D79="","",VLOOKUP(D79,CATALOGO!$B$2:$E$333,4,FALSE)) -> 
J80: =IF(D80="","",VLOOKUP(D80,CATALOGO!$B$2:$E$333,4,FALSE)) -> 
J81: =IF(D81="","",VLOOKUP(D81,CATALOGO!$B$2:$E$333,4,FALSE)) -> 
R82: =SUM(R11:R81) -> 32

Sheet CN_2019_SERVICOS (hidden)
E1: UNIDAD DE GESTION EDUCATIVA LOCAL PUNO UE 311
E2: CUADRO DE NECESIDADES 2019 | V2: CARV($E$4;CENTRO_COSTO!$C$2:$K$888;10;FALSO)
A4: Codigo Centro de Costo | E4: 1434.04.10 | G4: Numero de Celular | H4: 980890282 | K4: Nº Personas | O4: 1
A6: Centro de Costos | E6: =+VLOOKUP($E$4,CENTRO_COSTO!$C$2:$D$888,2,FALSE) -> ALMACEN | K6: Actividad de POI | V6: =IF(E4="","",VLOOKUP(E4,PERSONAL,5,FALSE)) -> 14675
A8: Nombres y Apellidos | E8: =IF(E4="","",VLOOKUP(E4,PERSONAL,4,FALSE)) -> MAMANILUQUEMARWIN | G8: Correo Electronico | H8: ro2g2@hotmail.com | K8: Actividad Administrativa | V8: =SUM(V11:V81) -> 500
A10: CODIGO INTERNO | B10: Clasificador de Gasto | D10: CATALOGO SIGA | E10: DESCRIPCIÓN | I10: Unidad de medida | J10: 01 | K10: 02 | L10: 03 | M10: 04 | N10: 05 | O10: 06 | P10: 07 | Q10: 08 | R10: 09 | S10: 10 | T10: 11 | U10: 12 | V10: TOTAL | W10: OBSERVACIONES
A11: 415 | D11: =IF(A11="","",VLOOKUP(A11,CATALOGO,2,FALSE)) -> 767400060481 | E11: =IF(A11="","",VLOOKUP(A11,CATALOGO,3,FALSE)) -> TÓNER DE IMPRESIÓN PARA HP COD. REF. 15A C7115A NEGRO | I11: =IF(A11="","",VLOOKUP(A11,CATALOGO,4,FALSE)) -> UNIDAD | J11: 100 | K11: 200 | V11: =SUM(J11+K11+L11+N11+O11+P11+Q11+R11+S11+T11+U11) -> 300
A12: 425 | D12: 767400061508 | E12: =IF(A12="","",VLOOKUP(A12,CATALOGO,3,FALSE)) -> TÓNER DE IMPRESIÓN PARA KYOCERA COD. REF. TK 1147 NEGRO | I12: =IF(A12="","",VLOOKUP(A12,CATALOGO,4,FALSE)) -> UNIDAD | V12: =SUM(J12+K12+L12+N12+O12+P12+Q12+R12+S12+T12+U12) -> 0
A13: 445 | D13: 135000180041 | E13: TRAPEADOR MOPA DE PABILO DE 30 cm | I13: UNIDAD | M13: 200 | S13: 200 | V13: 200
V14: 0
V15: 0
V16: 0
V17: =IF(J17="","",(J17*K17+L17+M17+N17+O17+P17+Q17+R17+S17+T17+U17+#REF!)) -> 
V18: =IF(J18="","",(J18*K18+L18+M18+N18+O18+P18+Q18+R18+S18+T18+U18+#REF!)) -> 
V19: =IF(J19="","",(J19*K19+L19+M19+N19+O19+P19+Q19+R19+S19+T19+U19+#REF!)) -> 
V20: =IF(J20="","",(J20*K20+L20+M20+N20+O20+P20+Q20+R20+S20+T20+U20+#REF!)) -> 
V21: =IF(J21="","",(J21*K21+L21+M21+N21+O21+P21+Q21+R21+S21+T21+U21+#REF!)) -> 
V22: =IF(J22="","",(J22*K22+L22+M22+N22+O22+P22+Q22+R22+S22+T22+U22+#REF!)) -> 
V23: =IF(J23="","",(J23*K23+L23+M23+N23+O23+P23+Q23+R23+S23+T23+U23+#REF!)) -> 
V24: =IF(J24="","",(J24*K24+L24+M24+N24+O24+P24+Q24+R24+S24+T24+U24+#REF!)) -> 
V25: =IF(J25="","",(J25*K25+L25+M25+N25+O25+P25+Q25+R25+S25+T25+U25+#REF!)) -> 
V26: =IF(J26="","",(J26*K26+L26+M26+N26+O26+P26+Q26+R26+S26+T26+U26+#REF!)) -> 
V27: =IF(J27="","",(J27*K27+L27+M27+N27+O27+P27+Q27+R27+S27+T27+U27+#REF!)) -> 
V28: =IF(J28="","",(J28*K28+L28+M28+N28+O28+P28+Q28+R28+S28+T28+U28+#REF!)) -> 
V29: =IF(J29="","",(J29*K29+L29+M29+N29+O29+P29+Q29+R29+S29+T29+U29+#REF!)) -> 
V30: =IF(J30="","",(J30*K30+L30+M30+N30+O30+P30+Q30+R30+S30+T30+U30+#REF!)) -> 
V31: =IF(J31="","",(J31*K31+L31+M31+N31+O31+P31+Q31+R31+S31+T31+U31+#REF!)) -> 
V32: =IF(J32="","",(J32*K32+L32+M32+N32+O32+P32+Q32+R32+S32+T32+U32+#REF!)) -> 
V33: =IF(J33="","",(J33*K33+L33+M33+N33+O33+P33+Q33+R33+S33+T33+U33+#REF!)) -> 
V34: =IF(J34="","",(J34*K34+L34+M34+N34+O34+P34+Q34+R34+S34+T34+U34+#REF!)) -> 
V35: =IF(J35="","",(J35*K35+L35+M35+N35+O35+P35+Q35+R35+S35+T35+U35+#REF!)) -> 
V36: =IF(J36="","",(J36*K36+L36+M36+N36+O36+P36+Q36+R36+S36+T36+U36+#REF!)) -> 
V37: =IF(J37="","",(J37*K37+L37+M37+N37+O37+P37+Q37+R37+S37+T37+U37+#REF!)) -> 
V38: =IF(J38="","",(J38*K38+L38+M38+N38+O38+P38+Q38+R38+S38+T38+U38+#REF!)) -> 
V39: =IF(J39="","",(J39*K39+L39+M39+N39+O39+P39+Q39+R39+S39+T39+U39+#REF!)) -> 
V40: =IF(J40="","",(J40*K40+L40+M40+N40+O40+P40+Q40+R40+S40+T40+U40+#REF!)) -> 
V41: =IF(J41="","",(J41*K41+L41+M41+N41+O41+P41+Q41+R41+S41+T41+U41+#REF!)) -> 
V42: =IF(J42="","",(J42*K42+L42+M42+N42+O42+P42+Q42+R42+S42+T42+U42+#REF!)) -> 
D43: =IF(A43="","",VLOOKUP(A43,CATALOGO,2,FALSE)) ->  | E43: =IF(A43="","",VLOOKUP(A43,CATALOGO,3,FALSE)) ->  | I43: =IF(A43="","",VLOOKUP(A43,CATALOGO,4,FALSE)) ->  | V43: =IF(J43="","",(J43*K43+L43+M43+N43+O43+P43+Q43+R43+S43+T43+U43+#REF!)) -> 
V44: =IF(J44="","",(J44*K44+L44+M44+N44+O44+P44+Q44+R44+S44+T44+U44+#REF!)) -> 
V45: =IF(J45="","",(J45*K45+L45+M45+N45+O45+P45+Q45+R45+S45+T45+U45+#REF!)) -> 
V46: =IF(J46="","",(J46*K46+L46+M46+N46+O46+P46+Q46+R46+S46+T46+U46+#REF!)) -> 
V47: =IF(J47="","",(J47*K47+L47+M47+N47+O47+P47+Q47+R47+S47+T47+U47+#REF!)) -> 
V48: =IF(J48="","",(J48*K48+L48+M48+N48+O48+P48+Q48+R48+S48+T48+U48+#REF!)) -> 
V49: =IF(J49="","",(J49*K49+L49+M49+N49+O49+P49+Q49+R49+S49+T49+U49+#REF!)) -> 
V50: =IF(J50="","",(J50*K50+L50+M50+N50+O50+P50+Q50+R50+S50+T50+U50+#REF!)) -> 
V51: =IF(J51="","",(J51*K51+L51+M51+N51+O51+P51+Q51+R51+S51+T51+U51+#REF!)) -> 
V52: =IF(J52="","",(J52*K52+L52+M52+N52+O52+P52+Q52+R52+S52+T52+U52+#REF!)) -> 
V53: =IF(J53="","",(J53*K53+L53+M53+N53+O53+P53+Q53+R53+S53+T53+U53+#REF!)) -> 
V54: =IF(J54="","",(J54*K54+L54+M54+N54+O54+P54+Q54+R54+S54+T54+U54+#REF!)) -> 
V55: =IF(J55="","",(J55*K55+L55+M55+N55+O55+P55+Q55+R55+S55+T55+U55+#REF!)) -> 
V56: =IF(J56="","",(J56*K56+L56+M56+N56+O56+P56+Q56+R56+S56+T56+U56+#REF!)) -> 
V57: =IF(J57="","",(J57*K57+L57+M57+N57+O57+P57+Q57+R57+S57+T57+U57+#REF!)) -> 
V58: =IF(J58="","",(J58*K58+L58+M58+N58+O58+P58+Q58+R58+S58+T58+U58+#REF!)) -> 
V59: =IF(J59="","",(J59*K59+L59+M59+N59+O59+P59+Q59+R59+S59+T59+U59+#REF!)) -> 
V60: =IF(J60="","",(J60*K60+L60+M60+N60+O60+P60+Q60+R60+S60+T60+U60+#REF!)) -> 
V61: =IF(J61="","",(J61*K61+L61+M61+N61+O61+P61+Q61+R61+S61+T61+U61+#REF!)) -> 
V62: =IF(J62="","",(J62*K62+L62+M62+N62+O62+P62+Q62+R62+S62+T62+U62+#REF!)) -> 
V63: =IF(J63="","",(J63*K63+L63+M63+N63+O63+P63+Q63+R63+S63+T63+U63+#REF!)) -> 
V64: =IF(J64="","",(J64*K64+L64+M64+N64+O64+P64+Q64+R64+S64+T64+U64+#REF!)) -> 
V65: =IF(J65="","",(J65*K65+L65+M65+N65+O65+P65+Q65+R65+S65+T65+U65+#REF!)) -> 
V66: =IF(J66="","",(J66*K66+L66+M66+N66+O66+P66+Q66+R66+S66+T66+U66+#REF!)) -> 
V67: =IF(J67="","",(J67*K67+L67+M67+N67+O67+P67+Q67+R67+S67+T67+U67+#REF!)) -> 
V68: =IF(J68="","",(J68*K68+L68+M68+N68+O68+P68+Q68+R68+S68+T68+U68+#REF!)) -> 
V69: =IF(J69="","",(J69*K69+L69+M69+N69+O69+P69+Q69+R69+S69+T69+U69+#REF!)) -> 
V70: =IF(J70="","",(J70*K70+L70+M70+N70+O70+P70+Q70+R70+S70+T70+U70+#REF!)) -> 
V71: =IF(J71="","",(J71*K71+L71+M71+N71+O71+P71+Q71+R71+S71+T71+U71+#REF!)) -> 
V72: =IF(J72="","",(J72*K72+L72+M72+N72+O72+P72+Q72+R72+S72+T72+U72+#REF!)) -> 
V73: =IF(J73="","",(J73*K73+L73+M73+N73+O73+P73+Q73+R73+S73+T73+U73+#REF!)) -> 
V74: =IF(J74="","",(J74*K74+L74+M74+N74+O74+P74+Q74+R74+S74+T74+U74+#REF!)) -> 
D75: =IF(A75="","",VLOOKUP(A75,CATALOGO,2,FALSE)) ->  | E75: =IF(A75="","",VLOOKUP(A75,CATALOGO,3,FALSE)) ->  | I75: =IF(A75="","",VLOOKUP(A75,CATALOGO,4,FALSE)) ->  | V75: =IF(J75="","",(J75*K75+L75+M75+N75+O75+P75+Q75+R75+S75+T75+U75+#REF!)) -> 
V76: =IF(J76="","",(J76*K76+L76+M76+N76+O76+P76+Q76+R76+S76+T76+U76+#REF!)) -> 
V77: =IF(J77="","",(J77*K77+L77+M77+N77+O77+P77+Q77+R77+S77+T77+U77+#REF!)) -> 
V78: =IF(J78="","",(J78*K78+L78+M78+N78+O78+P78+Q78+R78+S78+T78+U78+#REF!)) -> 
V79: =IF(J79="","",(J79*K79+L79+M79+N79+O79+P79+Q79+R79+S79+T79+U79+#REF!)) -> 
V80: =IF(J80="","",(J80*K80+L80+M80+N80+O80+P80+Q80+R80+S80+T80+U80+#REF!)) -> 
V81: =IF(J81="","",(J81*K81+L81+M81+N81+O81+P81+Q81+R81+S81+T81+U81+#REF!)) -> 
V82: =SUM(V11:V81) -> 500

Sheet CENTRO DE COSTOS
A1: CODIGO | B1: NRO | C1: NOMBRE DE ITEM | D1: UNIDAD | E1: PRECIO ESTIMADO | F1: CLASIFICADOR | H1: TECHO ASIGNADO POR AREA, PARA ACTIVIDADES | I1: TECHO ASIGNADO PARA ACTIVIDADES OPERATIVAS (Material de Escritorio) | J1: TECHO ASIGNADO PARA ACTIVIDADES DE REACONDICIONAMIENTO DE INFRAESTRUCTURA | K1: TECHO ASIGNADO PARA ACTIVIDADES, PARA ALAMACENES | L1: TECHO ASIGNADO PARA ACTIVIDADES DE CAJA CHICA | M1: TECHO ASIGNADO PARA ACTIVIDADES DE SERVICIOS BASICOS Y MENSAJERIA | N1: TECHO ASIGNADO PARA EL MANTENIMIENTO DE VEHICULOS Y SOAT | O1: TECHO ASIGNADO PARA LA CONTRATACION DE COMBUSTIBLE Y CARBURANTES | P1: TECHO ASIGNADO PARA LA HABILITACION DE PASAJES Y VIATICOS | Q1: TECHO ASIGNADO PARA MANTENIMIENTO DE EQUIPOS | R1: TECHO ASIGNADO PARA ASEO Y TOCADOR | S1: TECHO ASIGNADO PARA CONTRATACION POR TERCEROS | T1: TECHO ASIGNADO PARA RECERVA DE CONTINGENCIA
C2: GOBIERNO REGIONAL DE PUNO - UGEL PUNO | D2: CORNEJO MAMANI DAVID GREGORIO
C3: DIRECCIÓN GENRAL UGEL PUNO | D3: CORNEJO MAMANI DAVID GREGORIO | F3: 2.3. 1 5. 3 1 | H3: 42500 | I3: 0
A4: 1434.01.01 | B4: 1 | C4: DIRECCION GENERAL | D4: CORNEJO MAMANI DAVID GREGORIO | E4: 31962 | F4: 2.3. 1 5. 3 1 | I4: 889.2
A5: 1434.01.02 | B5: 2 | C5: SECRETARIA DIRECCIÓN | D5: FLORES CANO YUSEY DEL PILAR YASMIN | E5: 136 | F5: 2.3. 1 5. 3 1 | I5: 1134.252 | L5: =1500*12 -> 18000
A6: 1434.01.03 | B6: 3 | C6: TRAMITE DOCUMENTARIO | D6: FORAQUITAGUZMANJUANA SONIA ROXANA | E6: 2959 | F6: 2.3. 1 5. 3 1 | I6: 889.236 | M6: 1000
A7: 1434.01.04 | B7: 4 | C7: IMAGEN INSTITUCIONAL | D7: GORDILLOHERMOSACARLOS | E7: 11529 | I7: 677.736
A8: 1434.01.05 | B8: 5 | C8: ACTAS Y CERTIFICADOS | D8: TURPOVILCASIMON | E8: 302 | I8: 677.736
A9: 1434.01.06 | B9: 6 | C9: SECRETARIO TECNICO COPROA | D9: TACCAPUMACAJIAEFRAIN | E9: 1593 | I9: 677.736
C10: ÁREA DE ASESORIA JURIDICA | D10: CRUZMAMANIFLAVIO | H10: 11000 | I10: 0
A11: 1434.02.01 | B11: 7 | C11: JEFE DE ASESORIA JURIDICA | D11: CRUZMAMANIFLAVIO | E11: 343 | I11: 889.236
A12: 1434.02.02 | B12: 8 | C12: SECRETARIA OAJ | D12: DUEÑASZEAGERMAN | I12: 1134.252
A13: 1434.02.03 | B13: 9 | C13: ABOGADO I | D13: BAILONARIALFREDO | I13: 683.412
C14: ORGANO DE CONTROL INSTITUCIONAL | D14: GALLEGOSVARGASOSWALDO COSME | H14: 9000 | I14: 0
A15: 1434.03.01 | B15: 10 | C15: ORGANO DE CONTROL INSTITUCIONAL | D15: GALLEGOSVARGASOSWALDO COSME | E15: 269 | I15: 855.18
A16: 1434.03.02 | B16: 11 | C16: SECRETARIA II - OCI | D16: CHAVEZMOLINAMARIA LIVIA | I16: 1134.252
A17: 1434.03.03 | B17: 12 | C17: AUDITOR | D17: AROAPAZAQUISPERUBY ALBERTO | I17: 677.736
C18: ÄREA DE GESTION ADMINISTRATIVA | D18: PANIURAQUISPEMARIA ROSA | H18: 28500 | I18: 0
A19: 1434.04.01 | B19: 13 | C19: JEFE DE AGA | D19: PANIURAQUISPEMARIA ROSA | E19: 36480 | I19: 860.856 | P19: 35000 | S19: 18000
A20: 1434.04.02 | B20: 14 | C20: SECRETARIA ADMINISTRACION | D20: PACOMPIAPAUCARFLORA | E20: 825 | I20: 1134.252 | M20: 28000
A21: 1434.04.03 | B21: 15 | C21: OFICINA DE ABASTECIMIENTOS | D21: QUISPEFRISANCHOELAR PABLO | E21: 38222 | I21: 906.996 | N21: 22000 | O21: 30000
A22: 1434.04.04 | B22: 16 | C22: OFICINA DE CONTABILIDAD | D22: APAZAROJASJAVIER | E22: 7614 | I22: 906.996
A23: 1434.04.05 | B23: 17 | C23: TESORERIA | D23: GUERRAMARTINEZLIZARDO FULGENCIO | E23: 14178 | I23: 906.996
A24: 1434.04.06 | B24: 18 | C24: ESPECIALISTA EN PERSONAL | D24: ZAPANAPINEDATEODINA ELENA | E24: 4126 | I24: 889.236
A25: 1434.04.07 | B25: 19 | C25: SECRETARIA OFICNA DE PERSONAL | D25: MATAMETMELOMARY VICENTA | I25: 1134.252
A26: 1434.04.08 | B26: 20 | C26: SERVICIO DE TRANSPORTES I | D26: FLORESCONDORIJESUS MARCIAL | E26: 9356 | I26: 360
A27: 1434.04.09 | B27: 21 | C27: SERVICIO DE LIMPIEZA | D27: MAQUERAFLORESMARCELINO | E27: 285 | I27: 677.736
A28: 1434.04.10 | B28: 22 | C28: ALMACEN | D28: MAMANILUQUEMARWIN | E28: 14675 | I28: 906.996 | K28: 18000
A29: 1434.04.11 | B29: 23 | C29: PATRIMONIO | D29: JAMACHIARPASINORMA SOLEDAD | E29: 1225 | I29: 706.848 | Q29: 1200
A30: 1434.04.12 | B30: 24 | C30: CAJA | D30: MAQUERAFLORESMARCELINO | E30: 18734 | I30: 677.736
A31: 1434.04.13 | B31: 25 | C31: IMPRESIONES | D31: CUTIPAHUARCAYACLAUDIO | E31: 1999 | I31: 278.232 | R31: 10000
A32: 1434.04.14 | B32: 26 | C32: ESPECIALISTA EN INFORMATICA | D32: CCOPALAUREANOPATRICIA | E32: 4900 | I32: 600
A33: 1434.04.15 | B33: 27 | C33: PROYECTO RESOLUCIONES | D33: VILCAMORALESCONCEPCION | I33: 677.736
A34: 1434.04.16 | B34: 28 | C34: OPERADOR PAD | D34: RAMOSQUISPEMERY ROXANA | I34: 694.764
A35: 1434.04.17 | B35: 29 | C35: BIENESTAR SOCIAL | D35: TAPIAHUACASIAZALIA | E35: 9126 | I35: 677.736
A36: 1434.04.18 | B36: 30 | C36: ESCALAFON | D36: CORACAHUANAHERMILIO | E36: 18716 | I36: 677.736
A37: 1434.04.19 | B37: 31 | C37: ESPECIALISTA EN ESCALAFON | I37: 0
A38: 1434.04.20 | B38: 32 | C38: REMUNERACIONES | D38: GOMEZACHOCALLACELIA | E38: 8952 | I38: 677.736
A39: 1434.04.21 | B39: 33 | C39: ESPECIALISTA EN REMUNERACIONES | D39: CAHUANATICONAWALTER DUVERLIH | I39: 600
A40: 1434.04.22 | B40: 34 | C40: ESPECIALISTA EN ALMACEN | D40: QUISPEFRISANCHOELAR PABLO | E40: 1197 | I40: 0
A41: 1434.04.23 | B41: 35 | C41: TECNICO EN ABASTECIMIENTO | D41: CONZAPADILLOLUIS FERNANDO | I41: 600
A42: 1434.04.24 | B42: 36 | C42: TECNICO EN ESCALAFON | D42: CCOPALAUREANOPATRICIA | I42: 0
A43: 1434.04.25 | B43: 37 | C43: SERVICIO DE TRANSPORTE | D43: AYALAMURGAJUAN | I43: 360
A44: 1434.04.26 | B44: 38 | C44: SERVICIO DE TRANSPORTES II | D44: HUARCAYACOACCALLALENIN | I44: 360
A45: 1434.04.27 | B45: 39 | C45: SERVICIO DE TRANSPORTES III | D45: VELASQUEZCOILAJUAN PASTOR | I45: 360
C46: ÄREA DE GESTION PEDAGÓGICA | D46: CHOQUECOPARIRENE | I46: 0
A47: 1434.05.01 | B47: 40 | C47: JEFE DE AGP | D47: CHOQUECOPARIRENE | E47: 58181 | I47: 889.236
A48: 1434.05.02 | B48: 41 | C48: SECRETARIA AGP | D48: PALOMAMAYTAVILMA | E48: 285 | I48: 450
A49: 1434.05.03 | B49: 42 | C49: ESPECIALISTA EN EDUCACION INICIAL | D49: GUEVARAPINEDARUTH YENY | E49: 400 | I49: 450
A50: 1434.05.04 | B50: 43 | C50: ESPECIALISTA EN EDUCACION PRIMARIA - I | D50: HUARACHAORTEGAMARICELA JOVANA | E50: 235 | I50: 450
A51: 1434.05.05 | B51: 44 | C51: ESPECIALISTA EN MATEMATICA | D51: RAMOSALIAGANOEMI YESENIA | E51: 2305 | I51: 450
A52: 1434.05.06 | B52: 45 | C52: ESPECIALISTA EN COMUNICACION | D52: MELOQUISPERICARDO | I52: 450
A53: 1434.05.07 | B53: 46 | C53: ESPECIALISTA EN CTA | D53: QUESADAVELEZPERCY | E53: 9396 | I53: 450
A54: 1434.05.08 | B54: 47 | C54: ESPECIALISTA EN CC.SS | D54: CHALCOUGARTEMAXIMILIANO | E54: 101 | I54: 450
A55: 1434.05.09 | B55: 48 | C55: ESPECIALISTA EN EDUCACION FISICA | D55: MANSILLAPARIMARCO ADRIAN | E55: 7928 | I55: 450
A56: 1434.05.10 | B56: 49 | C56: ESPECIALISTA EN TOE | D56: NUÑEZAROAPAZADAYME ADALID | E56: 195 | I56: 450
A57: 1434.05.11 | B57: 50 | C57: ESPECIALISTA EN CETPRO | D57: HUANCAMENDOZAJESUS FORTUNATO | E57: 585 | I57: 450
A58: 1434.05.12 | B58: 51 | C58: ESPECIALISTA EN EDUCACION EIB- RURAL | D58: FLORESCAHUANAYANED | E58: 639 | I58: 450
A59: 1434.05.13 | B59: 52 | C59: ASISTENTE DE SERVICIO EDUCACION Y CULTURA | D59: COAQUIRAAPAZAMIRIAM VERONICA | E59: 2843 | I59: 450
A60: 1434.05.14 | B60: 53 | C60: GESTOR LOCAL PELA | D60: ORTEGAGUZMANMILAGROS JANET | E60: 13566 | I60: 450
A61: 1434.05.15 | B61: 54 | C61: ESPECIALISTA EN TIC | D61: VASQUEZCANSAYALUIS CESAR | I61: 450
A62: 1434.05.16 | B62: 55 | C62: COORDINADOR LOCAL DE PREVAED | D62: ZEAHUARAYACARLOS | I62: 450
A63: 1434.05.17 | B63: 56 | C63: ESPECIALISTA EN FORMACIÓN CIUDADANA Y CIVICA | D63: LAQUILAIMEEDWIN | I63: 450
A64: 1434.05.18 | B64: 57 | C64: ESPECIALISTA EN ALFABETIZACION | D64: NUÑEZAROAPAZADAYME ADALID | I64: 450
A65: 1434.05.19 | B65: 58 | C65: ESPECIALISTA EN CEBA | D65: LARICOCHALLCHAANTONIO SANTIAGO | F65: 2.3. 1 5. 1 2 | I65: 450
A66: 1434.05.20 | B66: 59 | C66: ESPECIALISTA INGLES | D66: PONCEFUENTESYOVANA FLORINDA | F66: 2.3. 1 5. 1 2 | I66: 450
A67: 1434.05.21 | B67: 60 | C67: ESPECIALISTA EPT | D67: CCORITIPOGERMAN | F67: 2.3. 1 5. 1 2 | I67: 450
A68: 1434.05.22 | B68: 61 | C68: ESPECIALISTA EN PRONOEI | D68: GONZALOVILCAPAZABEATRIZ | F68: 2.3. 1 5. 1 2 | I68: 450
A69: 1434.05.23 | B69: 62 | C69: RESPONSABLE L. C. INFORMACIÓN - PELA | D69: FLORESQUISPEJOSE LOLO | F69: 2.3. 1 5. 1 2 | I69: 450
A70: 1434.05.24 | B70: 63 | C70: ESPECIALISTA EN EDUCACION PRIMARIA - II | D70: VELASQUEZPEDRAZACORINA VILMA | F70: 2.3. 1 5. 1 2 | I70: 450
A71: 1434.05.25 | B71: 64 | C71: ESPECIALISTA EN CONVIVENCIA ESCOLAR | D71: MACEDOARGANDOÑAHAYDEE | F71: 2.3. 1 5. 1 2 | I71: 450
C72: AREA DE GESTION INSTITUCIONAL | D72: VALERIANOVALDEZMARIO MARIANO | F72: PAPEL LUSTRE DE 60 cm X 50 cm COLOR AZUL | H72: 31950 | I72: 0
A73: 1434.06.01 | B73: 65 | C73: JEFATURA AGI | D73: VALERIANOVALDEZMARIO MARIANO | E73: 51508 | F73: PAPEL LUSTRE DE 50 cm X 65 cm COLOR ROJO | I73: 855.18
A74: 1434.06.02 | B74: 66 | C74: SECRETARIA AGI | D74: MOLLOCONDOCHOQUENORMA | F74: PAPEL LUSTRE DE 50 cm X 65 cm COLOR AZUL | I74: 1134.252
A75: 1434.06.03 | B75: 67 | C75: PLANIFICADOR | D75: CACERESMAMANICELEDONIO NAZARIO | F75: PAPEL LUSTRE DE 50 cm X 65 cm COLOR AMARILLO | I75: 677.736
A76: 1434.06.04 | B76: 68 | C76: ESPECIALISTA EN ESTADISTICA | D76: IGNACIOVELAZCOPAUL | E76: 2909 | F76: PAPEL LUSTRE DE 50 cm X 65 cm COLOR VERDE | I76: 677.736
A77: 1434.06.05 | B77: 69 | C77: ESPECILISTA EN PRESUPUESTO Y FINAZAS | D77: ANCCORAMOSALIPIO RODRIGO | F77: PAPEL LUSTRE DE 50 cm X 65 cm COLOR CELESTE | I77: 855.18 | T77: 71058
A78: 1434.06.06 | B78: 70 | C78: ESPECIALISTA EN RACIONALIZACION | D78: MORANNPERCAMAGUIN | F78: PAPEL LUSTRE DE 60 cm X 50 cm COLOR CELESTE | I78: 677.736 | J78: 22200
A79: 1434.06.07 | B79: 71 | C79: ESPECIALISTA EN INFRAESTRUCTURA | D79: FERNANDEZGUTIERREZGUSTAVO VICTOR | F79: PAPEL LUSTRE DE 60 cm X 50 cm COLOR NARANJA | I79: 677.58
A80: 1434.06.08 | B80: 72 | C80: RESPONSABLE DEL PROGRAMA ACCESO | D80: CACERESMAMANICELEDONIO NAZARIO | E80: 320 | F80: PAPEL LUSTRE DE 60 cm X 50 cm COLOR LILA | I80: 0
A81: 1434.06.09 | B81: 73 | C81: DIR. SISTEMA ADM. I | D81: GONZALESARESTEGUIJULIO REYNALDO | F81: PAPEL LUSTRE DE 60 cm X 50 cm COLOR MORADO | I81: 677.736
A82: 1434.06.10 | B82: 74 | C82: ESPECIALISTA DE MANTENIMIENTO DE LOCALES | D82: MARCALIMACHINESTOR | F82: PAPEL LUSTRE DE 60 cm X 50 cm COLOR GUINDA | I82: 677.736
A83: 1434.06.11 | B83: 75 | C83: ESPECIALISTA IIEE. PRIVADAS | D83: BENITOLOPEZROXANA | I83: 677.736
D84: FLORES TICONA JAVIUER | I84: 677.736
D85: JUAN WASHINTON VARGAS CASTILLO | I85: 600
D86: CLINIO TUCO FERNANDEZ | I86: 600
H89: =+H72+H18+H14+H10+H3 -> 122950 | I89: =SUM(I2:I87) -> 48108.384 | J89: =SUM(J2:J87) -> 22200 | K89: =SUM(K2:K87) -> 18000 | L89: 18000 | M89: 29000 | N89: 22000 | O89: 30000 | P89: 35000 | Q89: 1200 | R89: 10000 | S89: 18000 | T89: 71058
H91: =SUM(H89:T89) -> 445516.384
H93: =+H91-494261 -> -48744.616

Sheet CATALOGO
A1: N° | B1: CODIGO | C1: NOMBRE DE ITEM | D1: UNIDAD | E1: PRECIO ESTIMADO | F1: CLASIFICADOR
A2: 1 | B2: 133000410156 | C2: ALCOHOL SPRAY X 400 mL | D2: UNIDAD | E2: 12
A3: 2 | B3: 133000140205 | C3: AMBIENTADOR EN PASTILLA PARA BAÑO X 40 gr APROX. | D3: UNIDAD | E3: 7 | F3: 2.3. 1 5. 3 1
A4: 3 | B4: 133000140079 | C4: AMBIENTADOR EN SPRAY X 360 mL | D4: UNIDAD | E4: 7 | F4: 2.3. 1 5. 3 1
A5: 4 | B5: 133000140077 | C5: AMBIENTADOR EN SPRAY X 400 mL APROX. | D5: UNIDAD | E5: 7 | F5: 2.3. 1 5. 3 1
A6: 5 | B6: 133000140091 | C6: AMBIENTADOR EN SPRAY X 650 mL | D6: UNIDAD | E6: 7 | F6: 2.3. 1 5. 3 1
A7: 6 | B7: 710600010009 | C7: ARCHIVADOR DE CARTON CON PALANCA LOMO ANCHO TAMAÑO MEDIO OFICIO | D7: UNIDAD | E7: 4 | F7: 2.3. 1 5. 3 1
A8: 7 | B8: 710600010012 | C8: ARCHIVADOR DE CARTON CON PALANCA LOMO ANCHO TAMAÑO OFICIO | D8: UNIDAD | E8: 3.66 | F8: 2.3. 1 5. 3 1
A9: 8 | B9: 710600010014 | C9: ARCHIVADOR DE CARTON CON PALANCA LOMO ANGOSTO TAMAÑO MEDIO OFICIO | D9: UNIDAD | E9: 4 | F9: 2.3. 1 5. 3 1
A10: 9 | B10: 283400060097 | C10: BATERIA 13 PLACAS 12 V 75 A | D10: UNIDAD | E10: 335 | F10: 2.3. 1 5. 3 1
A11: 10 | B11: 283400060228 | C11: BATERIA 15 PLACAS 12 V 1000 A | D11: UNIDAD | E11: 320 | F11: 2.3. 1 5. 3 1
A12: 11 | B12: 716000010022 | C12: BOLIGRAFO (LAPICERO) DE TINTA LIQUIDA PUNTA FINA COLOR AZUL | D12: UNIDAD | E12: 2.8 | F12: 2.3. 1 5. 3 1
A13: 12 | B13: 716000010001 | C13: BOLIGRAFO (LAPICERO) DE TINTA LIQUIDA PUNTA FINA COLOR NEGRO | D13: UNIDAD | E13: 2.8 | F13: 2.3. 1 5. 3 1
A14: 13 | B14: 716000010002 | C14: BOLIGRAFO (LAPICERO) DE TINTA LIQUIDA PUNTA FINA COLOR ROJO | D14: UNIDAD | E14: 2.8 | F14: 2.3. 1 5. 1 2
A15: 14 | B15: 716000010196 | C15: BOLIGRAFO (LAPICERO) DE TINTA SECA PUNTA MEDIA | D15: UNIDAD | E15: 0.77 | F15: 2.3. 1 3. 1 1
A16: 15 | B16: 716000010212 | C16: BOLIGRAFO (LAPICERO) DE TINTA SECA PUNTA MEDIA COLOR AZUL | D16: UNIDAD | E16: 0.4
A17: 16 | B17: 716000010213 | C17: BOLIGRAFO (LAPICERO) DE TINTA SECA PUNTA MEDIA COLOR NEGRO | D17: UNIDAD | E17: 0.4 | F17: 2.3. 1 9. 1 2
A18: 17 | B18: 716000010214 | C18: BOLIGRAFO (LAPICERO) DE TINTA SECA PUNTA MEDIA COLOR ROJO | D18: UNIDAD | E18: 0.4 | F18: 2.3. 1 9. 1 2
A19: 18 | B19: 716000010222 | C19: BOLIGRAFO (LAPICERO) DE TINTA SECA PUNTA MEDIA COLOR AZUL | D19: EMPAQUE X 50 | E19: 24 | F19: 2.3. 1 9. 1 2
A20: 19 | B20: 716000010223 | C20: BOLIGRAFO (LAPICERO) DE TINTA SECA PUNTA MEDIA COLOR ROJO. | D20: EMPAQUE X 50 | E20: 24 | F20: 2.3. 1 9. 1 2
A21: 20 | B21: 711100010028 | C21: BORRADOR BLANCO PARA LAPIZ TAMAÑO CHICO | D21: UNIDAD | E21: 0.37 | F21: 2.3. 1 9. 1 2
A22: 21 | B22: 711100010008 | C22: BORRADOR MIXTO TAMAÑO GRANDE | D22: UNIDAD | E22: 0.8 | F22: 2.3. 1 9. 1 2
A23: 22 | B23: 717300110160 | C23: CARTON PRENSADO N° 8 DE 70 cm X 100 cm | D23: UNIDAD | E23: 8 | F23: 2.3. 1 9. 1 2
A24: 23 | B24: 717300110328 | C24: CARTULINA CORRUGADA 100 g DE 50 cm X 70 cm DE COLOR | D24: UNIDAD | E24: 0.24 | F24: 2.3. 1 9. 1 2
A25: 24 | B25: 717300110043 | C25: CARTULINA PLASTIFICADA DE 50 cm X 60 cm | D25: UNIDAD | E25: 0.24
A26: 25 | B26: 717300110094 | C26: CARTULINA PLASTIFICADA DE 50 cm X 65 cm COLOR AZUL | D26: UNIDAD | E26: 0.24 | F26: 2.3. 1 5. 1 2
A27: 26 | B27: 717300110188 | C27: CARTULINA SATINADA 150 g DE 70 cm X 100 cm | D27: UNIDAD | E27: 0.5 | F27: 2.3. 1 5. 1 2
A28: 27 | B28: 717300110032 | C28: CARTULINA SATINADA 150 g DE 50 cm X 65 cm | D28: UNIDAD | E28: 0.5 | F28: 2.3. 1 5. 1 2
A29: 28 | B29: 717300110332 | C29: CARTULINA SATINADA 150 g DE 50 cm X 65 cm COLOR BLANCO | D29: CIENTO | E29: 0.5 | F29: 2.3. 1 5. 1 2
A30: 29 | B30: 717300110097 | C30: CARTULINA SATINADA 150 g DE 50 cm X 65 cm COLOR BLANCO | D30: UNIDAD | E30: 0.5 | F30: 2.3. 1 5. 1 2
A31: 30 | B31: 717300110165 | C31: CARTULINA SATINADA 150 g DE 50 cm X 65 cm COLOR NEGRO | D31: UNIDAD | E31: 0.5 | F31: 2.3. 1 5. 1 2
A32: 31 | B32: 717300110042 | C32: CARTULINA SATINADA 150 g DE 70 cm X 100 cm COLOR BLANCO | D32: UNIDAD | E32: 0.5 | F32: 2.3. 1 5. 1 2
A33: 32 | B33: 717300110089 | C33: CARTULINA SIMPLE 120 g DE 70 cm X 100 cm COLOR BLANCO | D33: UNIDAD | E33: 0.3 | F33: 2.3. 1 5. 1 2
A34: 33 | B34: 717300110329 | C34: CARTULINA SIMPLE 140 g 50 cm X 65 cm COLOR BLANCO | D34: UNIDAD | E34: 0.3186 | F34: 2.3. 1 5. 1 2
A35: 34 | B35: 717300110331 | C35: CARTULINA SIMPLE 140 g 50 cm X 65 cm COLOR NEGRO | D35: UNIDAD | E35: 0.3186 | F35: 2.3. 1 5. 1 2
A36: 35 | B36: 717300110403 | C36: CARTULINA SIMPLE 140 g 50 cm X 65 cm COLOR RAL 1016 | D36: UNIDAD | E36: 0.255 | F36: 2.3. 1 5. 1 2
A37: 36 | B37: 717300110404 | C37: CARTULINA SIMPLE 140 g 50 cm X 65 cm COLOR RAL 5015 | D37: UNIDAD | E37: 0.2551 | F37: 2.3. 1 5. 1 2
A38: 37 | B38: 717300110405 | C38: CARTULINA SIMPLE 140 g 50 cm X 65 cm COLOR RAL 6001 | D38: UNIDAD | E38: 0.2551 | F38: 2.3. 1 5. 1 2
A39: 38 | B39: 717300110330 | C39: CARTULINA SIMPLE 140 g 50 cm X 65 cm DE COLORES | D39: UNIDAD | E39: 0.3 | F39: 2.3. 1 5. 1 2
A40: 39 | B40: 717300110270 | C40: CARTULINA SIMPLE 145 g DE 50 cm X 56 cm COLOR AMARILLO | D40: UNIDAD | E40: 0.3 | F40: 2.3. 1 5. 1 2
A41: 40 | B41: 717300110266 | C41: CARTULINA SIMPLE 145 g DE 50 cm X 56 cm COLOR BLANCO | D41: UNIDAD | E41: 0.3 | F41: 2.3. 1 5. 1 2
A42: 41 | B42: 717300110268 | C42: CARTULINA SIMPLE 145 g DE 50 cm X 56 cm COLOR CELESTE | D42: UNIDAD | E42: 0.3 | F42: 2.3. 1 5. 1 2
A43: 42 | B43: 717300110267 | C43: CARTULINA SIMPLE 145 g DE 50 cm X 56 cm COLOR ROSADO | D43: UNIDAD | E43: 0.3 | F43: 2.3. 1 5. 1 2
A44: 43 | B44: 717300110269 | C44: CARTULINA SIMPLE 145 g DE 50 cm X 56 cm COLOR VERDE | D44: UNIDAD | E44: 0.3 | F44: 2.3. 1 5. 1 2
A45: 44 | B45: 717300110337 | C45: CARTULINA SIMPLE 145 g DE 50 cm X 65 cm COLOR BLANCA | D45: UNIDAD | E45: 0.3 | F45: 2.3. 1 5. 1 2
A46: 45 | B46: 717300110363 | C46: CARTULINA SIMPLE 145 g TAMAÑO A4 | D46: CIENTO | E46: 3 | F46: 2.3. 1 5. 1 2
A47: 46 | B47: 717300110342 | C47: CARTULINA SIMPLE 150 g 70 cm X 100 cm COLOR AMARILLO | D47: UNIDAD | E47: 0.4 | F47: 2.3. 1 5. 1 2
A48: 47 | B48: 717300110002 | C48: CARTULINA SIMPLE 150 g DE 50 cm X 65 cm | D48: UNIDAD | E48: 0.4 | F48: 2.3. 1 5. 1 2
A49: 48 | B49: 717300110034 | C49: CARTULINA SIMPLE 150 g DE 50 cm X 65 cm COLOR AMARILLO | D49: UNIDAD | E49: 0.4 | F49: 2.3. 1 5. 1 2
A50: 49 | B50: 717300110226 | C50: CARTULINA SIMPLE 150 g DE 50 cm X 65 cm COLOR AZUL | D50: UNIDAD | E50: 0.4 | F50: 2.3. 1 5. 1 2
A51: 50 | B51: 717300110035 | C51: CARTULINA SIMPLE 150 g DE 50 cm X 65 cm COLOR BLANCO | D51: UNIDAD | E51: 0.4 | F51: 2.3. 1 5. 1 2
A52: 51 | B52: 717300110036 | C52: CARTULINA SIMPLE 150 g DE 50 cm X 65 cm COLOR CELESTE | D52: UNIDAD | E52: 0.4 | F52: 2.3. 1 5. 1 2
A53: 52 | B53: 717300110313 | C53: CARTULINA SIMPLE 150 g DE 50 cm X 65 cm COLOR MARRÓN | D53: UNIDAD | E53: 0.4 | F53: 2.3. 1 5. 1 2
A54: 53 | B54: 717300110135 | C54: CARTULINA SIMPLE 150 g DE 50 cm X 65 cm COLOR ROJO | D54: UNIDAD | E54: 0.4 | F54: 2.3. 1 5. 1 2
A55: 54 | B55: 717300110092 | C55: CARTULINA SIMPLE 150 g DE 50 cm X 65 cm COLOR ROSADO | D55: UNIDAD | E55: 0.4 | F55: 2.3. 1 5. 1 2
A56: 55 | B56: 717300110091 | C56: CARTULINA SIMPLE 150 g DE 50 cm X 65 cm COLOR VERDE | D56: UNIDAD | E56: 0.4 | F56: 2.3. 1 5. 1 2
A57: 56 | B57: 717300110285 | C57: CARTULINA SIMPLE 150 g DE 70 cm X 100 cm COLOR BLANCO | D57: CIENTO | E57: 3 | F57: 2.3. 1 5. 1 2
A58: 57 | B58: 717300110019 | C58: CARTULINA SIMPLE 150 g TAMAÑO A4 | D58: CIENTO | E58: 3 | F58: 2.3. 1 5. 1 2
A59: 58 | B59: 717300110125 | C59: CARTULINA SIMPLE 150 g TAMAÑO A5 COLOR AMARILLO | D59: UNIDAD | E59: 0.5 | F59: 2.3. 1 5. 1 2
A60: 59 | B60: 717300110121 | C60: CARTULINA SIMPLE 150 g TAMAÑO A5 COLOR BLANCO | D60: UNIDAD | E60: 0.5 | F60: 2.3. 1 5. 1 2
A61: 60 | B61: 717300110123 | C61: CARTULINA SIMPLE 150 g TAMAÑO A5 COLOR CELESTE | D61: UNIDAD | E61: 0.5 | F61: 2.3. 1 5. 1 2
A62: 61 | B62: 717300110122 | C62: CARTULINA SIMPLE 150 g TAMAÑO A5 COLOR ROSADO | D62: UNIDAD | E62: 0.5 | F62: 2.3. 1 5. 1 2
A63: 62 | B63: 717300110124 | C63: CARTULINA SIMPLE 150 g TAMAÑO A5 COLOR VERDE | D63: UNIDAD | E63: 0.5 | F63: 2.3. 1 5. 1 2
A64: 63 | B64: 717300110039 | C64: CARTULINA SIMPLE 160 g DE 50 cm X 65 cm | D64: UNIDAD | E64: 0.4 | F64: 2.3. 1 5. 1 2
A65: 64 | B65: 717300110013 | C65: CARTULINA SIMPLE 160 g DE 61 cm X 86 cm | D65: UNIDAD | E65: 0.4 | F65: 2.3. 1 5. 1 2
A66: 65 | B66: 717300110070 | C66: CARTULINA SIMPLE 160 g DE 65 cm X 50 cm COLOR NEGRO | D66: UNIDAD | E66: 0.4 | F66: 2.3. 1 5. 1 2
A67: 66 | B67: 717300110009 | C67: CARTULINA SIMPLE 165 g DE 65 cm X 50 cm | D67: UNIDAD | E67: 0.4 | F67: 2.3. 1 5. 1 2
A68: 67 | B68: 717300110075 | C68: CARTULINA SIMPLE 165 g DE 65 cm X 50 cm COLOR BLANCO | D68: UNIDAD | E68: 0.4 | F68: 2.3. 1 5. 1 2
A69: 68 | B69: 717300110086 | C69: CARTULINA SIMPLE 170 g DE 70 cm X 100 cm COLOR CELESTE | D69: CIENTO | E69: 0.4 | F69: 2.3. 1 5. 1 2
A70: 69 | B70: 717300110051 | C70: CARTULINA SIMPLE 180 g DE 100 cm X 70 cm COLOR ROSADO | D70: UNIDAD | E70: 0.4 | F70: 2.3. 1 5. 1 2
A71: 70 | B71: 717300110098 | C71: CARTULINA SIMPLE 180 g DE 50 cm X 65 cm COLOR CELESTE | D71: UNIDAD | E71: 0.4 | F71: 2.3. 1 5. 1 2
A72: 71 | B72: 717300110099 | C72: CARTULINA SIMPLE 180 g DE 50 cm X 65 cm COLOR ROSADO | D72: UNIDAD | E72: 0.4 | F72: PAPEL LUSTRE DE 60 cm X 50 cm COLOR AZUL
A73: 72 | B73: 717300110014 | C73: CARTULINA SIMPLE 180 g DE 61 cm X 86 cm | D73: UNIDAD | E73: 0.4 | F73: PAPEL LUSTRE DE 50 cm X 65 cm COLOR ROJO
A74: 73 | B74: 717300110095 | C74: CARTULINA SIMPLE 180 g DE 69 cm x 89 cm COLOR CELESTE | D74: EMPAQUE X 500 | E74: 0.4 | F74: PAPEL LUSTRE DE 50 cm X 65 cm COLOR AZUL
A75: 74 | B75: 717300110085 | C75: CARTULINA SIMPLE 180 g DE 69 cm X 89 cm COLOR ROSADO | D75: CIENTO | E75: 0.4 | F75: PAPEL LUSTRE DE 50 cm X 65 cm COLOR AMARILLO
A76: 75 | B76: 717300110084 | C76: CARTULINA SIMPLE 180 g DE 69 cm X 89 cm COLOR VERDE | D76: CIENTO | E76: 0.4 | F76: PAPEL LUSTRE DE 50 cm X 65 cm COLOR VERDE
A77: 76 | B77: 717300110047 | C77: CARTULINA SIMPLE 180 g DE 70 cm X 100 cm COLOR BLANCO | D77: UNIDAD | E77: 0.4 | F77: PAPEL LUSTRE DE 50 cm X 65 cm COLOR CELESTE
A78: 77 | B78: 717300110046 | C78: CARTULINA SIMPLE 180 g DE 70 cm X 100 cm COLOR ROSADO | D78: CIENTO | E78: 0.4 | F78: PAPEL LUSTRE DE 60 cm X 50 cm COLOR CELESTE
A79: 78 | B79: 717300110003 | C79: CARTULINA SIMPLE 180 g TAMAÑO A4 | D79: UNIDAD | E79: 0.3 | F79: PAPEL LUSTRE DE 60 cm X 50 cm COLOR NARANJA
A80: 79 | B80: 717300110005 | C80: CARTULINA SIMPLE 220 g DE 66 cm X 102 cm | D80: UNIDAD | E80: 0.3 | F80: PAPEL LUSTRE DE 60 cm X 50 cm COLOR LILA
A81: 80 | B81: 717300110004 | C81: CARTULINA SIMPLE 220 g DE 70 cm X 100 cm | D81: UNIDAD | E81: 0.3 | F81: PAPEL LUSTRE DE 60 cm X 50 cm COLOR MORADO
A82: 81 | B82: 717300110012 | C82: CARTULINA SIMPLE 90 g DE 70 cm X 100 cm | D82: UNIDAD | E82: 0.3 | F82: PAPEL LUSTRE DE 60 cm X 50 cm COLOR GUINDA
A83: 82 | B83: 717300120003 | C83: CARTULINA TIPO CANSON 150 g DE 50 cm X 65 cm | D83: UNIDAD | E83: 1.5
A84: 83 | B84: 717300110130 | C84: CARTULINA TIPO TAGG 150 g DE 23.2 cm X 32.5 cm | D84: UNIDAD | E84: 0.3
A85: 84 | B85: 767400040059 | C85: CD GRABABLE DE 700 MB | D85: UNIDAD | E85: 0.3
A86: 85 | B86: 133000070031 | C86: CERA AL AGUA AUTOBRILLANTE COLOR NEUTRAL | D86: GALON | E86: 25
A87: 86 | B87: 133000070049 | C87: CERA AL AGUA AUTOBRILLANTE COLOR NEUTRAL X 20 L | D87: UNIDAD | E87: 25
A88: 87 | B88: 133000070046 | C88: CERA AL AGUA PARA PISO AUTOBRILLANTE COLOR AMARILLO | D88: GALON | E88: 25
A89: 88 | B89: 133000070047 | C89: CERA AL AGUA PARA PISO AUTOBRILLANTE COLOR NEGRO | D89: GALON | E89: 25
A90: 89 | B90: 133000070045 | C90: CERA AL AGUA PARA PISO AUTOBRILLANTE COLOR ROJO | D90: GALON | E90: 25
A91: 90 | B91: 133000070037 | C91: CERA AL AGUA PARA PISO COLOR AMARILLO | D91: GALON | E91: 25
A92: 91 | B92: 133000070035 | C92: CERA AL AGUA PARA PISO COLOR BLANCO | D92: GALON | E92: 25
A93: 92 | B93: 133000070036 | C93: CERA AL AGUA PARA PISO COLOR NEGRO | D93: GALON | E93: 25
A94: 93 | B94: 133000070034 | C94: CERA AL AGUA PARA PISO COLOR ROJO | D94: GALON | E94: 25
A95: 94 | B95: 133000070038 | C95: CERA AL AGUA PARA PISO X 5 L | D95: UNIDAD | E95: 25
A96: 95 | B96: 133000070010 | C96: CERA AL AGUA PARA PISO X 55 gal | D96: UNIDAD | E96: 25
A97: 96 | B97: 133000070032 | C97: CERA AL AGUA PARA PISO. | D97: GALON | E97: 25
A98: 97 | B98: 133000070025 | C98: CERA AL AGUA PERFUMADA X 1 L | D98: UNIDAD | E98: 7
A99: 98 | B99: 133000070048 | C99: CERA AL AGUA PERFUMADA. | D99: GALON | E99: 25
A100: 99 | B100: 133000070053 | C100: CERA LÍQUIDA CON SILICONA PARA PISO COLOR ROJO X 1 gal | D100: UNIDAD | E100: 21
A101: 100 | B101: 133000070056 | C101: CERA LÍQUIDA CON SILICONA PARA PISO X 1 gal | D101: UNIDAD | E101: 21
A102: 101 | B102: 133000070054 | C102: CERA LÍQUIDA PARA PISO AUTOBRILLANTE COLOR BLANCO | D102: GALON | E102: 25
A103: 102 | B103: 133000070043 | C103: CERA LIQUIDA PARA PISO COLOR ROJO | D103: GALON | E103: 25
A104: 103 | B104: 133000070042 | C104: CERA LIQUIDA PARA PISO X 1 gal | D104: UNIDAD | E104: 21
A105: 104 | B105: 710300010010 | C105: CINTA ADHESIVA TRANSPARENTE 2 in X 72 yd | D105: UNIDAD | E105: 3.2
A106: 105 | B106: 710300160013 | C106: CINTA DE PAPEL PARA ENMASCARAR - MASKING TAPE 1 1/2 in X 40 yd | D106: UNIDAD | E106: 3.9
A107: 106 | B107: 710300160049 | C107: CINTA DE PAPEL PARA ENMASCARAR - MASKING TAPE 1 in X 36 yd | D107: UNIDAD | E107: 2.3
A108: 107 | B108: 710300160006 | C108: CINTA DE PAPEL PARA ENMASCARAR - MASKING TAPE 2 in X 40 yd | D108: UNIDAD | E108: 4.4
A109: 108 | B109: 710300160071 | C109: CINTA DE PAPEL PARA ENMASCARAR - MASKING TAPE 3 1/4 in X 40 yd | D109: UNIDAD | E109: 1.54
A110: 109 | B110: 710300160018 | C110: CINTA DE PAPEL PARA ENMASCARAR - MASKING TAPE 3/4 in X 25 yd | D110: UNIDAD | E110: 1.66
A111: 110 | B111: 710300160017 | C111: CINTA DE PAPEL PARA ENMASCARAR - MASKING TAPE 3/4 in X 40 yd | D111: UNIDAD | E111: 1.98
A112: 111 | B112: 718500050045 | C112: CLIP DE METAL 33 mm | D112: UNIDAD | E112: 0.8614
A113: 112 | B113: 718500050032 | C113: CLIP DE METAL 33 mm X 100 | D113: UNIDAD | E113: 0.9676
A114: 113 | B114: 718500050001 | C114: CLIP DE METAL CHICO Nº 1 X 100 | D114: UNIDAD | E114: 0.6372
A115: 114 | B115: 718500050030 | C115: CLIP MARIPOSA DE METAL Nº 2 X 12 | D115: UNIDAD | E115: 1.7372
A116: 115 | B116: 718500050004 | C116: CLIP MARIPOSA DE METAL Nº 3 X 12 | D116: UNIDAD | E116: 2.4
A117: 116 | B117: 718500050017 | C117: CLIP MARIPOSA DE METAL Nº 3 X 50 | D117: UNIDAD | E117: 3.056
A118: 117 | B118: 737000010033 | C118: COLA SINTETICA X 250 g | D118: UNIDAD | E118: 1.55
A119: 118 | B119: 239400090220 | C119: CONO DE PLÁSTICO PARA ENTRENAMIENTO 30 cm | D119: UNIDAD | E119: 3.8
A120: 119 | B120: 711100030005 | C120: CORRECTOR LIQUIDO TIPO LAPICERO | D120: UNIDAD | E120: 2.5
A121: 120 | B121: 890400010045 | C121: CORROSPUN 1.00 m X 1.00 m | D121: UNIDAD | E121: 8.9
A122: 121 | B122: 890400010151 | C122: CORROSPUN 1.00 m X 1.00 m COLOR AMARILLO | D122: UNIDAD | E122: 10.5
A123: 122 | B123: 890400010152 | C123: CORROSPUN 1.00 m X 1.00 m COLOR CELESTE | D123: UNIDAD | E123: 10.5
A124: 123 | B124: 890400010150 | C124: CORROSPUN 1.00 m X 1.00 m COLOR FUCSIA | D124: UNIDAD | E124: 10.5
A125: 124 | B125: 890400010153 | C125: CORROSPUN 1.00 m X 1.00 m COLOR VERDE CLARO | D125: UNIDAD | E125: 10.5
A126: 125 | B126: 890400010187 | C126: CORROSPUN 1.40 m X 1.80 m COLOR AMARILLO | D126: UNIDAD | E126: 8.9
A127: 126 | B127: 890400010192 | C127: CORROSPUN 1.40 m X 1.80 m COLOR FUCSIA | D127: UNIDAD | E127: 8.9
A128: 127 | B128: 890400010191 | C128: CORROSPUN 1.40 m X 1.80 m COLOR MARRON | D128: UNIDAD | E128: 8.9
A129: 128 | B129: 890400010189 | C129: CORROSPUN 1.40 m X 1.80 m COLOR NEGRO | D129: UNIDAD | E129: 8.9
A130: 129 | B130: 890400010190 | C130: CORROSPUN 1.40 m X 1.80 m COLOR ROJO | D130: UNIDAD | E130: 8.9
A131: 130 | B131: 890400010186 | C131: CORROSPUN 1.40 m X 1.80 m COLOR VERDE | D131: UNIDAD | E131: 8.9
A132: 131 | B132: 890400010188 | C132: CORROSPUN 1.40 m X 1.80 m COLOR VERDE CLARO | D132: UNIDAD | E132: 8.9
A133: 132 | B133: 890400010163 | C133: CORROSPUN DE 1.00 m X 1.50 m | D133: UNIDAD | E133: 8.9
A134: 133 | B134: 890400010082 | C134: CORROSPUN DE 1.40 m X 1.00 m | D134: UNIDAD | E134: 8.9
A135: 134 | B135: 890400010067 | C135: CORROSPUN DE 70 cm X 50 cm | D135: UNIDAD | E135: 4
A136: 135 | B136: 890400010110 | C136: CORROSPUN DE 70 cm X 50 cm COLOR ROSADO | D136: UNIDAD | E136: 4
A137: 136 | B137: 890400010178 | C137: CORROSPUN X 1.50 m DE ANCHO | D137: METRO | E137: 8.9
A138: 137 | B138: 890400010177 | C138: CORROSPUN X 1.80 m DE ANCHO | D138: UNIDAD | E138: 8.9
A139: 138 | B139: 890400010165 | C139: CORROSPUN X 2.00 m DE ANCHO | D139: METRO | E139: 8.9
A140: 139 | B140: 890400010074 | C140: CORROSPUN X 70 cm DE ANCHO COLOR BLANCO | D140: METRO | E140: 8.9
A141: 140 | B141: 890400010174 | C141: CORROSPUN X 70 cm DE ANCHO COLOR DORADO | D141: METRO | E141: 8.9
A142: 141 | B142: 890400010072 | C142: CORROSPUN X 70 cm DE ANCHO COLOR MARRON | D142: METRO | E142: 8.9
A143: 142 | B143: 890400010070 | C143: CORROSPUN X 70 cm DE ANCHO COLOR NEGRO | D143: METRO | E143: 8.9
A144: 143 | B144: 890400010175 | C144: CORROSPUN X 70 cm DE ANCHO COLOR PLATEADO | D144: METRO | E144: 8.9
A145: 144 | B145: 890400010071 | C145: CORROSPUN X 70 cm DE ANCHO COLOR ROJO | D145: METRO | E145: 8.9
A146: 145 | B146: 890400010073 | C146: CORROSPUN X 70 cm DE ANCHO COLOR VERDE | D146: METRO | E146: 8.9
A147: 146 | B147: 890400010075 | C147: CORROSPUN X 70 CM DE ANCHO COLOR VERDE CLARO | D147: METRO | E147: 8.9
A148: 147 | B148: 717200030014 | C148: CUADERNO CUADRICULADO TAMAÑO A4 X 100 HOJAS | D148: UNIDAD | E148: 4.95
A149: 148 | B149: 717200030287 | C149: CUADERNO DOBLE ESPIRAL CUADRICULADO TAMAÑO A4 X 180 HOJAS | D149: UNIDAD | E149: 6.07
A150: 149 | B150: 715000320033 | C150: CUCHILLA PARA CORTAR PAPEL 10 mm | D150: UNIDAD | E150: 1.12
A151: 150 | B151: 715000320027 | C151: CUCHILLA PARA CORTAR PAPEL CON MANGO DE PLASTICO | D151: UNIDAD | E151: 8
A152: 151 | B152: 135000040013 | C152: DESATORADOR DE JEBE PARA SERVICIOS HIGIENICOS DE 6 in | D152: UNIDAD | E152: 7
A153: 152 | B153: 133000120055 | C153: DESINFECTANTE LIMPIADOR AROMATICO X 1 gal | D153: UNIDAD | E153: 10
A154: 153 | B154: 133000160091 | C154: DETERGENTE GRANULADO X 3 kg | D154: UNIDAD | E154: 22
A155: 154 | B155: 133000160140 | C155: DETERGENTE GRANULADO X 350 g APROX. | D155: UNIDAD | E155: 3.5
A156: 155 | B156: 133000160124 | C156: DETERGENTE GRANULADO X 4 kg | D156: UNIDAD | E156: 49
A157: 156 | B157: 133000160100 | C157: DETERGENTE GRANULADO X 4.5 kg | D157: UNIDAD | E157: 55
A158: 157 | B158: 133000160086 | C158: DETERGENTE GRANULADO X 5 kg | D158: UNIDAD | E158: 30
A159: 158 | B159: 767400040151 | C159: DISCO DVD - RW 4 GB | D159: UNIDAD | E159: 0.7
A160: 159 | B160: 767400040083 | C160: DISCO DVD - RW DE 4.7 GB | D160: UNIDAD | E160: 0.74
A161: 160 | B161: 767400040014 | C161: DISCO DVD GRABABLE DE 4.7 GB | D161: UNIDAD | E161: 0.68
A162: 161 | B162: 767400040094 | C162: DISCO DVD GRABABLE DE 4.7 GB SERIGRAFIADO | D162: UNIDAD | E162: 0.68
A163: 162 | B163: 715000110041 | C163: ENGRAPADOR CHICO DE OFICINA CON YUNQUE GIRATORIO | D163: UNIDAD | E163: 6.49
A164: 163 | B164: 715000110030 | C164: ENGRAPADOR DE METAL TIPO ALICATE | D164: UNIDAD | E164: 24
A165: 164 | B165: 715000110048 | C165: ENGRAPADOR DE METAL TIPO ALICATE PARA GRAPA 26/6 | D165: UNIDAD | E165: 23.8
A166: 165 | B166: 135000050045 | C166: ESCOBA BAJA POLICIA DE 2 PITAS 2 ZUNCHOS | D166: UNIDAD | E166: 9
A167: 166 | B167: 135000050060 | C167: ESCOBA DE CERDA DE PLÁSTICO 40 cm | D167: UNIDAD | E167: 7
A168: 167 | B168: 135000060119 | C168: ESCOBILLA DE PLASTICO PARA INODORO CON BASE | D168: UNIDAD | E168: 5
A169: 168 | B169: 135000080025 | C169: ESCOBILLON DE CERDA PARA PISO X 30 cm | D169: UNIDAD | E169: 6.5
A170: 169 | B170: 710600040024 | C170: FOLDER MANILA TAMAÑO A4 | D170: EMPAQUE X 25 | E170: 4.43
A171: 170 | B171: 710600060044 | C171: FORRO DE PLASTICO TRANSPARENTE TAMAÑO OFICIO X 5 m | D171: UNIDAD | E171: 5
A172: 171 | B172: 172100080006 | C172: GASOHOL 84 PLUS | D172: GALON | E172: 12.5
A173: 172 | B173: 172100080007 | C173: GASOHOL 90 PLUS | D173: GALON | E173: 13.5
A174: 173 | B174: 710300060057 | C174: GOMA EN BARRA X 40 g APROX. | D174: UNIDAD | E174: 2.8
A175: 174 | B175: 718500080010 | C175: GRAPA 23/10 X 1000 | D175: UNIDAD | E175: 2.5
A176: 175 | B176: 718500080026 | C176: GRAPA 26/6 X 5000 | D176: UNIDAD | E176: 2.5
A177: 176 | B177: 135000360009 | C177: GUANTE DE JEBE DE USO DOMESTICO TALLA 10 | D177: PAR | E177: 8
A178: 177 | B178: 135000360022 | C178: GUANTE DE JEBE DE USO DOMESTICO TALLA 12 | D178: PAR | E178: 8
A179: 178 | B179: 135000360003 | C179: GUANTE DE JEBE DE USO DOMESTICO TALLA 6 | D179: PAR | E179: 6
A180: 179 | B180: 135000360007 | C180: GUANTE DE JEBE DE USO DOMESTICO TALLA 6 1/2 | D180: PAR | E180: 6.5
A181: 180 | B181: 135000360004 | C181: GUANTE DE JEBE DE USO DOMESTICO TALLA 7 | D181: PAR | E181: 7
A182: 181 | B182: 135000360008 | C182: GUANTE DE JEBE DE USO DOMESTICO TALLA 7 1/2 | D182: PAR | E182: 7.5
A183: 182 | B183: 135000360005 | C183: GUANTE DE JEBE DE USO DOMESTICO TALLA 8 | D183: PAR | E183: 8
A184: 183 | B184: 135000360006 | C184: GUANTE DE JEBE DE USO DOMESTICO TALLA 8 1/2 | D184: PAR | E184: 8.5
A185: 184 | B185: 135000360002 | C185: GUANTE DE JEBE DE USO DOMESTICO TALLA 9 | D185: PAR | E185: 9
A186: 185 | B186: 135000360001 | C186: GUANTE DE JEBE DE USO DOMESTICO TALLA 9 1/2 | D186: PAR | E186: 9.5
A187: 186 | B187: 135000360015 | C187: GUANTE DE JEBE DE USO DOMESTICO TALLA L | D187: PAR | E187: 8
A188: 187 | B188: 135000360029 | C188: GUANTE DE JEBE DE USO DOMESTICO TALLA L X 10 | D188: PAR | E188: 8
A189: 188 | B189: 135000360011 | C189: GUANTE DE JEBE DE USO SEMI INDUSTRIAL TALLA 6 | D189: PAR | E189: 8
A190: 189 | B190: 135000360013 | C190: GUANTE DE JEBE DE USO SEMI INDUSTRIAL TALLA 7 1/2 | D190: PAR | E190: 8
A191: 190 | B191: 495700280112 | C191: GUANTE PARA EXAMEN DESCARTABLE Nº 7 X 100 UNI | D191: UNIDAD | E191: 10
A192: 191 | B192: 139200100117 | C192: JABON CARBOLICO EN BARRA X 200 g | D192: UNIDAD | E192: 2.6
A193: 192 | B193: 139200100025 | C193: JABON DE TOCADOR LIQUIDO X 500 mL | D193: UNIDAD | E193: 7.2
A194: 193 | B194: 235200040014 | C194: JUEGO DE AJEDREZ | D194: UNIDAD | E194: 13
A195: 194 | B195: 133000220009 | C195: KRESO X 1 L | D195: UNIDAD | E195: 4
A196: 195 | B196: 716000190004 | C196: LAPIZ DE CERA CRAYON GRUESO JUEGO X 12 | D196: UNIDAD | E196: 1.5
A197: 196 | B197: 716000040025 | C197: LAPIZ DE COLOR TAMAÑO GRANDE (JUEGO X 12 COLORES) | D197: UNIDAD | E197: 5
A198: 197 | B198: 716000040070 | C198: LAPIZ GRAFITO Nº 2 | D198: UNIDAD | E198: 0.2
A199: 198 | B199: 716000040089 | C199: LAPIZ NEGRO GRADO 2B | D199: DOCENA | E199: 4.11
A200: 199 | B200: 716000040112 | C200: LAPIZ NEGRO GRADO 2B CON BORRADOR | D200: UNIDAD | E200: 0.29
... 374 more rows

Sheet CENTRO_COSTO (hidden)
A1: N° | B1: Distrito | C1: Cód. Mod. | D1: Nombre de IE | E1: RESPONSABLE | F1: TECHO-PPTO | G1: Tipo IE | H1: Total de estudiantes matriculados (*) | J1: area
B2: Mañazo | C2: 311-1434 | D2: GOBIERNO REGIONAL DE PUNO - UGEL PUNO | E2: CORNEJOMAMANIDAVID GREGORIO | I2: =+B2 -> Mañazo
B3: Puno | C3: 1434.01 | D3: DIRECCIÓN GENRAL UGEL PUNO | E3: CORNEJOMAMANIDAVID GREGORIO | I3: Puno
A4: 1 | B4: Puno | C4: 1434.01.01 | D4: DIRECCION GENERAL | E4: CORNEJOMAMANIDAVID GREGORIO | I4: Puno
A5: 2 | B5: Puno | C5: 1434.01.02 | D5: SECRETARIA DIRECCIÓN | E5: FLORESCANOYUSEY DEL PILAR YASMIN | I5: Puno
A6: 3 | B6: Puno | C6: 1434.01.03 | D6: TRAMITE DOCUMENTARIO | E6: FORAQUITAGUZMANJUANA SONIA ROXANA | I6: Puno
A7: 4 | B7: Puno | C7: 1434.01.04 | D7: IMAGEN INSTITUCIONAL | E7: GORDILLOHERMOSACARLOS | I7: Puno
A8: 5 | B8: Puno | C8: 1434.01.05 | D8: ACTAS Y CERTIFICADOS | E8: TURPOVILCASIMON | I8: Puno
A9: 6 | B9: Puno | C9: 1434.01.06 | D9: SECRETARIO TECNICO COPROA | E9: TACCAPUMACAJIAEFRAIN | I9: Puno
B10: Puno | C10: 1434.02 | D10: ÁREA DE ASESORIA JURIDICA | E10: CRUZMAMANIFLAVIO | I10: Puno
A11: 7 | B11: Puno | C11: 1434.02.01 | D11: JEFE DE ASESORIA JURIDICA | E11: CRUZMAMANIFLAVIO | I11: Puno
A12: 8 | B12: Puno | C12: 1434.02.02 | D12: SECRETARIA OAJ | E12: DUEÑASZEAGERMAN | I12: Puno
A13: 9 | B13: Puno | C13: 1434.02.03 | D13: ABOGADO I | E13: BAILONARIALFREDO | I13: Puno
B14: Puno | C14: 1434.03 | D14: ORGANO DE CONTROL INSTITUCIONAL | E14: GALLEGOSVARGASOSWALDO COSME | I14: Puno
A15: 10 | B15: Puno | C15: 1434.03.01 | D15: ORGANO DE CONTROL INSTITUCIONAL | E15: GALLEGOSVARGASOSWALDO COSME | I15: Puno
A16: 11 | B16: Puno | C16: 1434.03.02 | D16: SECRETARIA II - OCI | E16: CHAVEZMOLINAMARIA LIVIA | I16: Puno
A17: 12 | B17: Puno | C17: 1434.03.03 | D17: AUDITOR | E17: AROAPAZAQUISPERUBY ALBERTO | I17: Puno
B18: Puno | C18: 1434.04 | D18: ÄREA DE GESTION ADMINISTRATIVA | E18: PANIURAQUISPEMARIA ROSA | I18: Puno
A19: 13 | B19: Puno | C19: 1434.04.01 | D19: JEFE DE AGA | E19: PANIURAQUISPEMARIA ROSA | I19: Puno
A20: 14 | B20: Puno | C20: 1434.04.02 | D20: SECRETARIA ADMINISTRACION | E20: PACOMPIAPAUCARFLORA | I20: Puno
A21: 15 | B21: Puno | C21: 1434.04.03 | D21: OFICINA DE ABASTECIMIENTOS | E21: QUISPEFRISANCHOELAR PABLO | I21: Puno
A22: 16 | B22: Puno | C22: 1434.04.04 | D22: OFICINA DE CONTABILIDAD | E22: APAZAROJASJAVIER | I22: Puno
A23: 17 | B23: Puno | C23: 1434.04.05 | D23: TESORERIA | E23: GUERRAMARTINEZLIZARDO FULGENCIO | I23: Puno
A24: 18 | B24: Puno | C24: 1434.04.06 | D24: ESPECIALISTA EN PERSONAL | E24: ZAPANAPINEDATEODINA ELENA | I24: Puno
A25: 19 | B25: Puno | C25: 1434.04.07 | D25: SECRETARIA OFICNA DE PERSONAL | E25: MATAMETMELOMARY VICENTA | I25: Puno
A26: 20 | B26: Puno | C26: 1434.04.08 | D26: SERVICIO DE TRANSPORTES I | E26: FLORESCONDORIJESUS MARCIAL | I26: Puno
A27: 21 | B27: Puno | C27: 1434.04.09 | D27: SERVICIO DE LIMPIEZA | E27: MAQUERAFLORESMARCELINO | I27: Puno
A28: 22 | B28: Puno | C28: 1434.04.10 | D28: ALMACEN | E28: MAMANILUQUEMARWIN | I28: Puno
A29: 23 | B29: Puno | C29: 1434.04.11 | D29: PATRIMONIO | E29: JAMACHIARPASINORMA SOLEDAD | I29: Puno
A30: 24 | B30: Puno | C30: 1434.04.12 | D30: CAJA | E30: MAQUERAFLORESMARCELINO | I30: Puno
A31: 25 | B31: Puno | C31: 1434.04.13 | D31: IMPRESIONES | E31: CUTIPAHUARCAYACLAUDIO | I31: Puno
A32: 26 | B32: Puno | C32: 1434.04.14 | D32: ESPECIALISTA EN INFORMATICA | E32: CCOPALAUREANOPATRICIA | I32: Puno
A33: 27 | B33: Puno | C33: 1434.04.15 | D33: PROYECTO RESOLUCIONES | E33: VILCAMORALESCONCEPCION | I33: Puno
A34: 28 | B34: Puno | C34: 1434.04.16 | D34: OPERADOR PAD | E34: RAMOSQUISPEMERY ROXANA | I34: =+B34 -> Puno
A35: 29 | B35: Puno | C35: 1434.04.17 | D35: BIENESTAR SOCIAL | E35: TAPIAHUACASIAZALIA | I35: Puno
A36: 30 | B36: Puno | C36: 1434.04.18 | D36: ESCALAFON | E36: CORACAHUANAHERMILIO | I36: Puno
A37: 31 | B37: Puno | C37: 1434.04.19 | D37: ESPECIALISTA EN ESCALAFON | E37: CORACAHUANAHERMILIO | I37: Puno
A38: 32 | B38: Puno | C38: 1434.04.20 | D38: REMUNERACIONES | E38: GOMEZACHOCALLACELIA | I38: Puno
A39: 33 | B39: Puno | C39: 1434.04.21 | D39: ESPECIALISTA EN REMUNERACIONES | E39: CAHUANATICONAWALTER DUVERLIH | I39: Puno
A40: 34 | B40: Puno | C40: 1434.04.22 | D40: ESPECIALISTA EN ALMACEN | E40: QUISPEFRISANCHOELAR PABLO | I40: Puno
A41: 35 | B41: Puno | C41: 1434.04.23 | D41: TECNICO EN ABASTECIMIENTO | E41: CONZAPADILLOLUIS FERNANDO | I41: Puno
A42: 36 | B42: Puno | C42: 1434.04.24 | D42: TECNICO EN ESCALAFON | E42: CCOPALAUREANOPATRICIA | I42: Puno
A43: 37 | B43: Puno | C43: 1434.04.25 | D43: SERVICIO DE TRANSPORTE | E43: AYALAMURGAJUAN | I43: Puno
A44: 38 | B44: Puno | C44: 1434.04.26 | D44: SERVICIO DE TRANSPORTES II | E44: HUARCAYACOACCALLALENIN | I44: Puno
A45: 39 | B45: Puno | C45: 1434.04.27 | D45: SERVICIO DE TRANSPORTES III | E45: VELASQUEZCOILAJUAN PASTOR | I45: Puno
B46: Puno | C46: 1434.05 | D46: ÄREA DE GESTION PEDAGÓGICA | E46: CHOQUECOPARIRENE | I46: Puno
A47: 40 | B47: Puno | C47: 1434.05.01 | D47: JEFE DE AGP | E47: CHOQUECOPARIRENE | I47: Puno
A48: 41 | B48: Puno | C48: 1434.05.02 | D48: SECRETARIA AGP | E48: PALOMAMAYTAVILMA | I48: Puno
A49: 42 | B49: Puno | C49: 1434.05.03 | D49: ESPECIALISTA EN EDUCACION INICIAL | E49: GUEVARAPINEDARUTH YENY | I49: Puno
A50: 43 | B50: Puno | C50: 1434.05.04 | D50: ESPECIALISTA EN EDUCACION PRIMARIA - I | E50: HUARACHAORTEGAMARICELA JOVANA | I50: Puno
A51: 44 | B51: Puno | C51: 1434.05.05 | D51: ESPECIALISTA EN MATEMATICA | E51: RAMOSALIAGANOEMI YESENIA | I51: Puno
A52: 45 | B52: Puno | C52: 1434.05.06 | D52: ESPECIALISTA EN COMUNICACION | E52: MELOQUISPERICARDO | I52: Puno
A53: 46 | B53: Puno | C53: 1434.05.07 | D53: ESPECIALISTA EN CTA | E53: QUESADAVELEZPERCY | I53: Puno
A54: 47 | B54: Puno | C54: 1434.05.08 | D54: ESPECIALISTA EN CC.SS | E54: CHALCOUGARTEMAXIMILIANO | I54: Puno
A55: 48 | B55: Puno | C55: 1434.05.09 | D55: ESPECIALISTA EN EDUCACION FISICA | E55: MANSILLAPARIMARCO ADRIAN | I55: Puno
A56: 49 | B56: Puno | C56: 1434.05.10 | D56: ESPECIALISTA EN TOE | E56: NUÑEZAROAPAZADAYME ADALID | I56: Puno
A57: 50 | B57: Puno | C57: 1434.05.11 | D57: ESPECIALISTA EN CETPRO | E57: HUANCAMENDOZAJESUS FORTUNATO | I57: Puno
A58: 51 | B58: Puno | C58: 1434.05.12 | D58: ESPECIALISTA EN EDUCACION EIB- RURAL | E58: FLORESCAHUANAYANED | I58: Puno
A59: 52 | B59: Puno | C59: 1434.05.13 | D59: ASISTENTE DE SERVICIO EDUCACION Y CULTURA | E59: COAQUIRAAPAZAMIRIAM VERONICA | I59: Puno
A60: 53 | B60: Puno | C60: 1434.05.14 | D60: GESTOR LOCAL PELA | E60: ORTEGAGUZMANMILAGROS JANET | I60: Puno
A61: 54 | B61: Puno | C61: 1434.05.15 | D61: ESPECIALISTA EN TIC | E61: VASQUEZCANSAYALUIS CESAR | I61: Puno
A62: 55 | B62: Puno | C62: 1434.05.16 | D62: COORDINADOR LOCAL DE PREVAED | E62: ZEAHUARAYACARLOS | I62: Puno
A63: 56 | B63: Puno | C63: 1434.05.17 | D63: ESPECIALISTA EN FORMACIÓN CIUDADANA Y CIVICA | E63: LAQUILAIMEEDWIN | I63: Puno
A64: 57 | B64: Puno | C64: 1434.05.18 | D64: ESPECIALISTA EN ALFABETIZACION | E64: NUÑEZAROAPAZADAYME ADALID | I64: Puno
A65: 58 | B65: Puno | C65: 1434.05.19 | D65: ESPECIALISTA EN CEBA | E65: LARICOCHALLCHAANTONIO SANTIAGO | I65: Puno
A66: 59 | B66: Puno | C66: 1434.05.20 | D66: ESPECIALISTA INGLES | E66: PONCEFUENTESYOVANA FLORINDA | I66: =+B66 -> Puno
A67: 60 | B67: Puno | C67: 1434.05.21 | D67: ESPECIALISTA EPT | E67: CCORITIPOGERMAN | I67: Puno
A68: 61 | B68: Puno | C68: 1434.05.22 | D68: ESPECIALISTA EN PRONOEI | E68: GONZALOVILCAPAZABEATRIZ | I68: Puno
A69: 62 | B69: Puno | C69: 1434.05.23 | D69: RESPONSABLE L. C. INFORMACIÓN - PELA | E69: FLORESQUISPEJOSE LOLO | I69: Puno
A70: 63 | B70: Puno | C70: 1434.05.24 | D70: ESPECIALISTA EN EDUCACION PRIMARIA - II | E70: VELASQUEZPEDRAZACORINA VILMA | I70: Puno
A71: 64 | B71: Puno | C71: 1434.05.25 | D71: ESPECIALISTA EN CONVIVENCIA ESCOLAR | E71: MACEDOARGANDOÑAHAYDEE | I71: Puno
B72: Puno | C72: 1434.06 | D72: AREA DE GESTION INSTITUCIONAL | E72: VALERIANOVALDEZMARIO MARIANO | I72: Puno
A73: 65 | B73: Puno | C73: 1434.06.01 | D73: JEFATURA AGI | E73: VALERIANOVALDEZMARIO MARIANO | I73: Puno
A74: 66 | B74: Puno | C74: 1434.06.02 | D74: SECRETARIA AGI | E74: MOLLOCONDOCHOQUENORMA | I74: Puno
A75: 67 | B75: Puno | C75: 1434.06.03 | D75: PLANIFICADOR | E75: CACERESMAMANICELEDONIO NAZARIO | I75: Puno
A76: 68 | B76: Puno | C76: 1434.06.04 | D76: ESPECIALISTA EN ESTADISTICA | E76: IGNACIOVELAZCOPAUL | I76: Puno
A77: 69 | B77: Puno | C77: 1434.06.05 | D77: ESPECILISTA EN PRESUPUESTO Y FINAZAS | E77: ANCCORAMOSALIPIO RODRIGO | I77: Puno
A78: 70 | B78: Puno | C78: 1434.06.06 | D78: ESPECIALISTA EN RACIONALIZACION | E78: MORANNPERCAMAGUIN | I78: Puno
A79: 71 | B79: Puno | C79: 1434.06.07 | D79: ESPECIALISTA EN INFRAESTRUCTURA | E79: FERNANDEZGUTIERREZGUSTAVO VICTOR | I79: Puno
A80: 72 | B80: Puno | C80: 1434.06.08 | D80: RESPONSABLE DEL PROGRAMA ACCESO | E80: CACERESMAMANICELEDONIO NAZARIO | I80: Puno
A81: 73 | B81: Puno | C81: 1434.06.09 | D81: DIR. SISTEMA ADM. I | E81: GONZALESARESTEGUIJULIO REYNALDO | I81: Puno
A82: 74 | B82: Puno | C82: 1434.06.10 | D82: ESPECIALISTA DE MANTENIMIENTO DE LOCALES | E82: MARCALIMACHINESTOR | I82: Puno
A83: 75 | B83: Puno | C83: 1434.06.11 | D83: ESPECIALISTA IIEE. PRIVADAS | E83: BENITOLOPEZROXANA | I83: Puno

Sheet ACTIVIDAD POI 2019
A2: C004 | B2: TALLER DE ACTUALIZACIÓN CON EL MINEDU-AGI- UGEL PUNO. | C2: 2.3
A3: C0005 | B3: FORTALECIMIENTO DE CAPACIDADES A DIRECTORES DE IE EN INSTRUMENTOS DE GESTION Y PROCESO DE RACIONALIZACION | C3: 2.3
A4: C0006 | B4: FORTALECIMIENTO DE CAPACIDADES A SERVIDORES DE LA UGEL | C4: 2.3
A5: C0007 | B5: MONITOREO Y ASISTENCIA A IIEE EN MANTENIMIENTO DE LOCALES ESCOLARES E INSTRUMENTOS DE GESTION | C5: 2.3
A6: C0008 | B6: ACTUALIZACION DEL PEL MEDIANTE EL COPALE | C6: 2.3
A7: C0009 | B7: SANEAMIENTO FISICO LEGAL DE PREDIOS ESCOLARES | C7: 2.3
A8: C0010 | B8: EMISION DE LOS PROGRAMAS AGENDA EDUCATIVA EN RADIO Y TELEVISION 2018 | C8: 2.3
A9: C0011 | B9: CEREMONIA DE RECONOCIMIENTO POR EL DIA DEL MAESTRO 2018 | C9: 2.3
A10: C0012 | B10: ELABORACION DE LA REVISTA INSTITUCIONAL | C10: 2.3
A11: C0013 | B11: CAMPAÑA DEL BUEN INICIO DEL AÑO ESCOLAR | C11: 2.3
A12: C0014 | B12: CEREMONIA POR FIESTAS PATRIAS DESFILE ESCOLAR | C12: 2.3
A13: C0015 | B13: JORNADAS DE ACTUALIZACION Y ASESORAMIENTO LEGAL PARA DIRECTORES DOCENTES PADRES DE FAMILIA ESTUDIANTES Y PERSONAL ADMINISTRATIVO | C13: 2.3
A14: C0016 | B14: DOTACION OPORTUNA DE MATERIALES EDUCATIVOS Y FUNGIBLES A LAS IE DEL AMBITO DE LA UGEL PUNO | C14: 2.3
A15: C0017 | B15: A CAPACITACION SOBRE MANEJO DE REGISTROS CONTABLES LIBRO CAJA INVENTARIOS B CAPACITACION SOBRE CONTROL DE ASISTENCIA Y PERMANENCIA DEL PERSONAL EN LAS IIEE PROCESOS DISCIPLINARIOS | C15: 2.3
A16: C0018 | B16: ASEGURAR EL FUNCIONAMIENTO DE LA SEDE ADMINISTRATIVA | C16: 2.3
A17: C0019 | B17: GARANTIZAR EL SERVICIO EDUCATIVO EN EL AMBITO PROVINCIAL | C17: 2.3
A18: C0003 | B18: GESTION ADMINISTRATIVA | C18: 2.3
A19: C0020 | B19: FORTALECIMIENTO Y DESARROLLO DE COMPETENCIAS Y CAPACIDADES DE DIRECTORES DE EBR PARA GARANTIZAR UNA OPTIMA GESTION PEDAGOGICA EN LAS IE Y PLANIFICACION CURRICULAR Y ESTRATEGIAS PARA DOCENTES DE EBR DIRECTORE Y ESPECIALISTAS | C19: 2.3
A20: C0021 | B20: SENSIBILIZACION Y ORIENTACION DE LA EVALUACION CENSAL Y ELABORACION DE MATERIALES REFERIDO A LA ECE NIVEL SECUNDARIA | C20: 2.3
A21: C0022 | B21: SENSIBILIZACION Y ORIENTACION DE LA EVALUACION CENSAL Y ELABORACION DE MATERIALES REFERIDO A LA ECE ECELO NIVEL PRIMARIA | C21: 2.3
A22: C0023 | B22: TALLER DE FORTALECMIENTO DE CAPACIDADES EN EL MANEJO DE TIC PRIMARIA Y SECUNDARIA | C22: 2.3
A23: C0024 | B23: PREMIO NACIONAL DE NARRATIVA Y ENSAYO JOSE MARIA ARGUEDAS 2018 | C23: 2.3
A24: C0025 | B24: CONCURSO DE ARGUMENTACION Y DEBATE PRODUCCION DE TEXTOS CUENTO Y POESIA A NIVEL DE DOCENTES 2018 BUENAS PRACTICAS A PARTIR DEL ESTUDIO DE CLASES AREA DE MATEMATICA ARGUMENTACION Y DEBATE REFLEXIONEMOS SOBRE LA INDEPENDENCIA DEL PERU I CONCURSO DE BIOGRAFIAS VIDA Y OBRAS DE PERSONAJES ILUSTRES DE MI LOCALIDAD Y CONCURSO DE ESTUDIANTINAS | C24: 2.3
A25: C0026 | B25: TALLER COMPRENSION LECTORA Y PRODUCCION DE TEXTOS AREA DE COMUNICACION EXPOSICION DE EDUCACION AMBIENTAL Y ACTUALIZACION DOCENTE ELABORACION DE MODULOS Y PROYECTOS E INTRUMENTOS DE EVALUACION 2018 ESTRATEGIAS METODOLOGICAS CONLA METODOLOGIA DE ESTUDIO DE CLASES CAPACIDADES DIGITALES PARA EL EJERCICIO CIUDADANO 2018 NIVEL SECUNDARIA | C25: 2.3
A26: C0027 | B26: XXVIII FENCYT EUREKA DISTRITAL PROVINCIAL Y REGIONALAREA DE CIENCIA Y TECNOLOGIAEDUCACION SECUNDARIA 2017 | C26: 2.3
A27: C0028 | B27: FORTALECIMIENTO DE CAPACIDADES FISICAS RECREATIVAS Y VALORES A TRAVES DE LOS JUEGOS DEPORTIVOS ESCOLARES NACIONALES 2018 | C27: 2.3
A28: C0029 | B28: II CARRERA PEDESTRE CORREDORES DEL TITICACA | C28: 2.3
A29: C0030 | B29: CONCURSO NACIONAL CREA Y EMPRENDE - AREA EDUCACION PARA EL TRABAJO TODAS LAS ETAPAS | C29: 2.3
A30: C0031 | B30: FORTALECIENDO NUESTRAS CAPACIDADES EN EL CURRICULO NACIONAL INSTRUMENTOS DE EVALUACION Y ESTRATEGIAS PARA LA MEJORA DE LOS APRENDIZAJES EN NIÑOS Y NIÑAS DEL NIVEL INICIAL | C30: 2.3
A31: C0032 | B31: DESARROLLANDO MIS HABILIDADES EN EL CIRCUITO MOTOR | C31: 2.3
A32: C0033 | B32: FORTALECIENDO NUESTRAS CAPACIDADES DEL NIVEL INICIAL PARA DOCENTES COODRINADORAS Y PROMOTORES EDUCATIVOS COM UNITARIOS | C32: 2.3
A33: C0034 | B33: XV ONEM 2018 SEGUNDA ETAPA- AREA DE MATEMATICA EDUCACION SECUNDARIA | C33: 2.3
A34: C0035 | B34: FORTALECIMIENTO Y DESARROLLO DE COMPETENCIAS Y CAPACIDADES DIRIGIDO A DIRECTORES COORDINADORES DE TUTORIA TUTORES Y AUXILIARES DE EDUCACION Y A LOS ESTUDIANTES PARA PROMOVER EL LIDERAZGO | C34: 2.3
A35: C0036 | B35: EXPERIENCIAS EXITOSAS POR UNA CONVIVENCIA SIN VIOLENCIA Y SUSCRIBIR CONVENION INSTITUCIONALES PARA PREVENIR TODO TIPO DE VIOLENCIA ESCOLAR | C35: 2.3
A36: C0037 | B36: FORTALECIENDO EL DESARROLLO DE LA CREATIVIDAD Y EXPRESIVIDAD MEDIANTE PRACTICAS ARTISTICAS CULTURALES Y TECNOLOGICAS | C36: 2.3
A37: C0038 | B37: DESDE LA ESCUELA PROMOVEMOS EL RECONOCIMIENTO Y RESPETO DE NUESTRA LENGUAS ORIGINARIAS AIMARA Y QUECHUA CONCURSO DE SPOT PUBLICITARIO SEMBRANDO SABERES DE MI COMUNIDAD SEGUNDO DIA DE LOGRO DEL AMBITO DE LA UGEL PUNO | C37: 2.3
A38: C0039 | B38: FORTALECIMIENTO DEL DOMINIO DE LENGUAS ORIGINARIAS AIMARA Y QUECHUA | C38: 2.3
A39: C0040 | B39: EXAMEN ESPECIAL AL PROCESO DE MANTENIMIENTO DE LOCALES ESCOLARES Y AL PROCESO DE ADQUISICION Y DISTRIBUCION DE BBSS EN LAS IIEE AMBITO UGEL PUNO | C39: 2.3
A40: C0041 | B40: VISITAS INOPINADAS SOBRE EL MANEJO DE PRESUPUESTO DE MANTENIMIENTO DE LOCALES ESCOLARES Y SOBRE EL MANEJO DE RECURSOS PROPIOS | C40: 2.3
A41: C0042 | B41: DESARROLLO DEL CICLO AVANZADO DE LA EDUCACION BASICA ALTERNATIVA BIENES Y SERVICIOS | C41: 2.3
A42: C0043 | B42: DESARROLLO DEL CICLO INTERMEDIO DE LA EDUCACION BASICA ALTERNATIVA BIENES Y SERVICIOS | C42: 2.3
A43: C0044 | B43: DESARROLLO DEL CICLO INTERMEDIO DE LA EDUCACION BASICA ALTERNATIVA BIENES Y SERVICIOS | C43: 2.3
A44: C0045 | B44: FOMENTAR EL DEPORTE Y LA RECREACION | C44: 2.3

Sheet INSTRUCTIVO
E1: UNIDAD DE GESTION EDUCATIVA LOCAL PUNO UE 311
E2: CUADRO DE NECESIDADES 2019 | R2: CARV($E$4;CENTRO_COSTO!$C$2:$K$888;10;FALSO)
A4: Codigo Centro de Costo | E4: 1434.04.03 | G4: Numero de Celular | H4: 980890282 | K4: Nº Personas | O4: 5
A6: Centro de Costos | E6: =+VLOOKUP($E$4,CENTRO_COSTO!$C$2:$D$888,2,FALSE) -> OFICINA DE ABASTECIMIENTOS | K6: Actividad de POI | R6: =IF(E4="","",VLOOKUP(E4,PERSONAL,5,FALSE)) -> 38222
A8: Nombres y Apellidos | E8: =IF(E4="","",VLOOKUP(E4,PERSONAL,4,FALSE)) -> QUISPEFRISANCHOELAR PABLO | G8: Correo Electronico | H8: ro2g2@hotmail.com | K8: Actividad Administrativa | Q8: - Aprobado | R8: =SUM(R11:R81) -> 360
A10: CODIGO INTERNO | B10: Clasificador de Gasto | D10: CATALOGO SIGA | E10: DESCRIPCIÓN | I10: Unidad de medida | J10: Precio Estimado | K10: I DOTACION ENE - ABR | M10: II DOTACION JUN - AGOT | O10: III DOTACION SET - DIC | Q10: CANTIDAD | R10: TOTAL | S10: OBSERVACIONES
A11: 1 | D11: =IF(A11="","",VLOOKUP(A11,CATALOGO,2,FALSE)) -> 133000410156 | E11: =IF(A11="","",VLOOKUP(A11,CATALOGO,3,FALSE)) -> ALCOHOL SPRAY X 400 mL | I11: =IF(A11="","",VLOOKUP(A11,CATALOGO,4,FALSE)) -> UNIDAD | J11: =IF(D11="","",VLOOKUP(D11,CATALOGO!$B$2:$E$333,4,FALSE)) -> 12 | K11: 10 | M11: 10 | O11: 10 | Q11: =IF(A11="","",(N11+O11+P11+K11+M11)) -> 30 | R11: =IF(J11="","",(J11*Q11)) -> 360
A12: 2 | D12: 133000140205 | E12: =IF(A12="","",VLOOKUP(A12,CATALOGO,3,FALSE)) -> AMBIENTADOR EN PASTILLA PARA BAÑO X 40 gr APROX. | I12: =IF(A12="","",VLOOKUP(A12,CATALOGO,4,FALSE)) -> UNIDAD | J12: =IF(D12="","",VLOOKUP(D12,CATALOGO!$B$2:$E$333,4,FALSE)) -> 7 | Q12: =IF(A12="","",(N12+O12+P12+K12+M12)) -> 0 | R12: 0
A13: 3 | D13: 133000140079 | E13: AMBIENTADOR EN SPRAY X 360 mL | I13: UNIDAD | J13: =IF(D13="","",VLOOKUP(D13,CATALOGO!$B$2:$E$333,4,FALSE)) -> 7 | Q13: 0 | R13: 0
A14: 4 | D14: 133000140077 | E14: AMBIENTADOR EN SPRAY X 400 mL APROX. | I14: UNIDAD | J14: =IF(D14="","",VLOOKUP(D14,CATALOGO!$B$2:$E$333,4,FALSE)) -> 7 | Q14: 0 | R14: 0
A15: 5 | D15: 133000140091 | E15: AMBIENTADOR EN SPRAY X 650 mL | I15: UNIDAD | J15: =IF(D15="","",VLOOKUP(D15,CATALOGO!$B$2:$E$333,4,FALSE)) -> 7 | Q15: 0 | R15: 0
A16: 6 | D16: 710600010009 | E16: ARCHIVADOR DE CARTON CON PALANCA LOMO ANCHO TAMAÑO MEDIO OFICIO | I16: UNIDAD | J16: =IF(D16="","",VLOOKUP(D16,CATALOGO!$B$2:$E$333,4,FALSE)) -> 4 | Q16: 0 | R16: 0
A17: 7 | D17: 710600010012 | E17: ARCHIVADOR DE CARTON CON PALANCA LOMO ANCHO TAMAÑO OFICIO | I17: UNIDAD | J17: =IF(D17="","",VLOOKUP(D17,CATALOGO!$B$2:$E$333,4,FALSE)) -> 3.66 | Q17: 0 | R17: 0
A18: 8 | D18: 710600010014 | E18: ARCHIVADOR DE CARTON CON PALANCA LOMO ANGOSTO TAMAÑO MEDIO OFICIO | I18: UNIDAD | J18: =IF(D18="","",VLOOKUP(D18,CATALOGO!$B$2:$E$333,4,FALSE)) -> 4 | Q18: 0 | R18: 0
A19: 9 | D19: 283400060097 | E19: BATERIA 13 PLACAS 12 V 75 A | I19: UNIDAD | J19: =IF(D19="","",VLOOKUP(D19,CATALOGO!$B$2:$E$333,4,FALSE)) -> 335 | Q19: 0 | R19: 0
A20: 10 | D20: 283400060228 | E20: BATERIA 15 PLACAS 12 V 1000 A | I20: UNIDAD | J20: =IF(D20="","",VLOOKUP(D20,CATALOGO!$B$2:$E$333,4,FALSE)) -> 320 | Q20: 0 | R20: 0
A21: 11 | D21: 716000010022 | E21: BOLIGRAFO (LAPICERO) DE TINTA LIQUIDA PUNTA FINA COLOR AZUL | I21: UNIDAD | J21: =IF(D21="","",VLOOKUP(D21,CATALOGO!$B$2:$E$333,4,FALSE)) -> 2.8 | Q21: 0 | R21: 0
A22: 12 | D22: 716000010001 | E22: BOLIGRAFO (LAPICERO) DE TINTA LIQUIDA PUNTA FINA COLOR NEGRO | I22: UNIDAD | J22: =IF(D22="","",VLOOKUP(D22,CATALOGO!$B$2:$E$333,4,FALSE)) -> 2.8 | Q22: 0 | R22: 0
A23: 13 | D23: 716000010002 | E23: BOLIGRAFO (LAPICERO) DE TINTA LIQUIDA PUNTA FINA COLOR ROJO | I23: UNIDAD | J23: =IF(D23="","",VLOOKUP(D23,CATALOGO!$B$2:$E$333,4,FALSE)) -> 2.8 | Q23: 0 | R23: 0
A24: 14 | D24: 716000010196 | E24: BOLIGRAFO (LAPICERO) DE TINTA SECA PUNTA MEDIA | I24: UNIDAD | J24: =IF(D24="","",VLOOKUP(D24,CATALOGO!$B$2:$E$333,4,FALSE)) -> 0.77 | Q24: 0 | R24: 0
A25: 15 | D25: 716000010212 | E25: BOLIGRAFO (LAPICERO) DE TINTA SECA PUNTA MEDIA COLOR AZUL | I25: UNIDAD | J25: =IF(D25="","",VLOOKUP(D25,CATALOGO!$B$2:$E$333,4,FALSE)) -> 0.4 | Q25: 0 | R25: 0
A26: 16 | D26: 716000010213 | E26: BOLIGRAFO (LAPICERO) DE TINTA SECA PUNTA MEDIA COLOR NEGRO | I26: UNIDAD | J26: =IF(D26="","",VLOOKUP(D26,CATALOGO!$B$2:$E$333,4,FALSE)) -> 0.4 | Q26: 0 | R26: 0
A27: 17 | D27: 716000010214 | E27: BOLIGRAFO (LAPICERO) DE TINTA SECA PUNTA MEDIA COLOR ROJO | I27: UNIDAD | J27: =IF(D27="","",VLOOKUP(D27,CATALOGO!$B$2:$E$333,4,FALSE)) -> 0.4 | Q27: 0 | R27: 0
A28: 18 | D28: 716000010222 | E28: BOLIGRAFO (LAPICERO) DE TINTA SECA PUNTA MEDIA COLOR AZUL | I28: EMPAQUE X 50 | J28: =IF(D28="","",VLOOKUP(D28,CATALOGO!$B$2:$E$333,4,FALSE)) -> 24 | Q28: 0 | R28: 0
A29: 19 | D29: 716000010223 | E29: BOLIGRAFO (LAPICERO) DE TINTA SECA PUNTA MEDIA COLOR ROJO. | I29: EMPAQUE X 50 | J29: =IF(D29="","",VLOOKUP(D29,CATALOGO!$B$2:$E$333,4,FALSE)) -> 24 | Q29: 0 | R29: 0
A30: 20 | D30: 711100010028 | E30: BORRADOR BLANCO PARA LAPIZ TAMAÑO CHICO | I30: UNIDAD | J30: =IF(D30="","",VLOOKUP(D30,CATALOGO!$B$2:$E$333,4,FALSE)) -> 0.37 | Q30: 0 | R30: 0
A31: 21 | D31: 711100010008 | E31: BORRADOR MIXTO TAMAÑO GRANDE | I31: UNIDAD | J31: =IF(D31="","",VLOOKUP(D31,CATALOGO!$B$2:$E$333,4,FALSE)) -> 0.8 | Q31: 0 | R31: 0
A32: 22 | D32: 717300110160 | E32: CARTON PRENSADO N° 8 DE 70 cm X 100 cm | I32: UNIDAD | J32: =IF(D32="","",VLOOKUP(D32,CATALOGO!$B$2:$E$333,4,FALSE)) -> 8 | Q32: 0 | R32: 0
A33: 23 | D33: 717300110328 | E33: CARTULINA CORRUGADA 100 g DE 50 cm X 70 cm DE COLOR | I33: UNIDAD | J33: =IF(D33="","",VLOOKUP(D33,CATALOGO!$B$2:$E$333,4,FALSE)) -> 0.24 | Q33: 0 | R33: 0
A34: 24 | D34: 717300110043 | E34: CARTULINA PLASTIFICADA DE 50 cm X 60 cm | I34: UNIDAD | J34: =IF(D34="","",VLOOKUP(D34,CATALOGO!$B$2:$E$333,4,FALSE)) -> 0.24 | Q34: 0 | R34: 0
A35: 25 | D35: 717300110094 | E35: CARTULINA PLASTIFICADA DE 50 cm X 65 cm COLOR AZUL | I35: UNIDAD | J35: =IF(D35="","",VLOOKUP(D35,CATALOGO!$B$2:$E$333,4,FALSE)) -> 0.24 | Q35: 0 | R35: 0
A36: 26 | D36: 717300110188 | E36: CARTULINA SATINADA 150 g DE 70 cm X 100 cm | I36: UNIDAD | J36: =IF(D36="","",VLOOKUP(D36,CATALOGO!$B$2:$E$333,4,FALSE)) -> 0.5 | Q36: 0 | R36: 0
A37: 27 | D37: 717300110032 | E37: CARTULINA SATINADA 150 g DE 50 cm X 65 cm | I37: UNIDAD | J37: =IF(D37="","",VLOOKUP(D37,CATALOGO!$B$2:$E$333,4,FALSE)) -> 0.5 | Q37: 0 | R37: 0
A38: 28 | D38: 717300110332 | E38: CARTULINA SATINADA 150 g DE 50 cm X 65 cm COLOR BLANCO | I38: CIENTO | J38: =IF(D38="","",VLOOKUP(D38,CATALOGO!$B$2:$E$333,4,FALSE)) -> 0.5 | Q38: 0 | R38: 0
A39: 29 | D39: 717300110097 | E39: CARTULINA SATINADA 150 g DE 50 cm X 65 cm COLOR BLANCO | I39: UNIDAD | J39: =IF(D39="","",VLOOKUP(D39,CATALOGO!$B$2:$E$333,4,FALSE)) -> 0.5 | Q39: 0 | R39: 0
A40: 30 | D40: 717300110165 | E40: CARTULINA SATINADA 150 g DE 50 cm X 65 cm COLOR NEGRO | I40: UNIDAD | J40: =IF(D40="","",VLOOKUP(D40,CATALOGO!$B$2:$E$333,4,FALSE)) -> 0.5 | Q40: 0 | R40: 0
A41: 31 | D41: 717300110042 | E41: CARTULINA SATINADA 150 g DE 70 cm X 100 cm COLOR BLANCO | I41: UNIDAD | J41: =IF(D41="","",VLOOKUP(D41,CATALOGO!$B$2:$E$333,4,FALSE)) -> 0.5 | Q41: 0 | R41: 0
A42: 32 | D42: 717300110089 | E42: CARTULINA SIMPLE 120 g DE 70 cm X 100 cm COLOR BLANCO | I42: UNIDAD | J42: =IF(D42="","",VLOOKUP(D42,CATALOGO!$B$2:$E$333,4,FALSE)) -> 0.3 | Q42: 0 | R42: 0
A43: 33 | D43: 717300110329 | E43: CARTULINA SIMPLE 140 g 50 cm X 65 cm COLOR BLANCO | I43: UNIDAD | J43: =IF(D43="","",VLOOKUP(D43,CATALOGO!$B$2:$E$333,4,FALSE)) -> 0.3186 | Q43: 0 | R43: =IF(J43="","",(J43*Q43)) -> 0
A44: 34 | D44: 717300110331 | E44: CARTULINA SIMPLE 140 g 50 cm X 65 cm COLOR NEGRO | I44: UNIDAD | J44: =IF(D44="","",VLOOKUP(D44,CATALOGO!$B$2:$E$333,4,FALSE)) -> 0.3186 | Q44: 0 | R44: 0
A45: 35 | D45: 717300110403 | E45: CARTULINA SIMPLE 140 g 50 cm X 65 cm COLOR RAL 1016 | I45: UNIDAD | J45: =IF(D45="","",VLOOKUP(D45,CATALOGO!$B$2:$E$333,4,FALSE)) -> 0.255 | Q45: 0 | R45: 0
A46: 36 | D46: 717300110404 | E46: CARTULINA SIMPLE 140 g 50 cm X 65 cm COLOR RAL 5015 | I46: UNIDAD | J46: =IF(D46="","",VLOOKUP(D46,CATALOGO!$B$2:$E$333,4,FALSE)) -> 0.2551 | Q46: 0 | R46: 0
A47: 37 | D47: 717300110405 | E47: CARTULINA SIMPLE 140 g 50 cm X 65 cm COLOR RAL 6001 | I47: UNIDAD | J47: =IF(D47="","",VLOOKUP(D47,CATALOGO!$B$2:$E$333,4,FALSE)) -> 0.2551 | Q47: 0 | R47: 0
A48: 38 | D48: 717300110330 | E48: CARTULINA SIMPLE 140 g 50 cm X 65 cm DE COLORES | I48: UNIDAD | J48: =IF(D48="","",VLOOKUP(D48,CATALOGO!$B$2:$E$333,4,FALSE)) -> 0.3 | Q48: 0 | R48: 0
A49: 39 | D49: 717300110270 | E49: CARTULINA SIMPLE 145 g DE 50 cm X 56 cm COLOR AMARILLO | I49: UNIDAD | J49: =IF(D49="","",VLOOKUP(D49,CATALOGO!$B$2:$E$333,4,FALSE)) -> 0.3 | Q49: 0 | R49: 0
A50: 40 | D50: 717300110266 | E50: CARTULINA SIMPLE 145 g DE 50 cm X 56 cm COLOR BLANCO | I50: UNIDAD | J50: =IF(D50="","",VLOOKUP(D50,CATALOGO!$B$2:$E$333,4,FALSE)) -> 0.3 | Q50: 0 | R50: 0
A51: 41 | D51: 717300110268 | E51: CARTULINA SIMPLE 145 g DE 50 cm X 56 cm COLOR CELESTE | I51: UNIDAD | J51: =IF(D51="","",VLOOKUP(D51,CATALOGO!$B$2:$E$333,4,FALSE)) -> 0.3 | Q51: 0 | R51: 0
A52: 42 | D52: 717300110267 | E52: CARTULINA SIMPLE 145 g DE 50 cm X 56 cm COLOR ROSADO | I52: UNIDAD | J52: =IF(D52="","",VLOOKUP(D52,CATALOGO!$B$2:$E$333,4,FALSE)) -> 0.3 | Q52: 0 | R52: 0
A53: 43 | D53: 717300110269 | E53: CARTULINA SIMPLE 145 g DE 50 cm X 56 cm COLOR VERDE | I53: UNIDAD | J53: =IF(D53="","",VLOOKUP(D53,CATALOGO!$B$2:$E$333,4,FALSE)) -> 0.3 | Q53: 0 | R53: 0
A54: 44 | D54: 717300110337 | E54: CARTULINA SIMPLE 145 g DE 50 cm X 65 cm COLOR BLANCA | I54: UNIDAD | J54: =IF(D54="","",VLOOKUP(D54,CATALOGO!$B$2:$E$333,4,FALSE)) -> 0.3 | Q54: 0 | R54: 0
A55: 45 | D55: 717300110363 | E55: CARTULINA SIMPLE 145 g TAMAÑO A4 | I55: CIENTO | J55: =IF(D55="","",VLOOKUP(D55,CATALOGO!$B$2:$E$333,4,FALSE)) -> 3 | Q55: 0 | R55: 0
A56: 46 | D56: 717300110342 | E56: CARTULINA SIMPLE 150 g 70 cm X 100 cm COLOR AMARILLO | I56: UNIDAD | J56: =IF(D56="","",VLOOKUP(D56,CATALOGO!$B$2:$E$333,4,FALSE)) -> 0.4 | Q56: 0 | R56: 0
A57: 47 | D57: 717300110002 | E57: CARTULINA SIMPLE 150 g DE 50 cm X 65 cm | I57: UNIDAD | J57: =IF(D57="","",VLOOKUP(D57,CATALOGO!$B$2:$E$333,4,FALSE)) -> 0.4 | Q57: 0 | R57: 0
A58: 48 | D58: 717300110034 | E58: CARTULINA SIMPLE 150 g DE 50 cm X 65 cm COLOR AMARILLO | I58: UNIDAD | J58: =IF(D58="","",VLOOKUP(D58,CATALOGO!$B$2:$E$333,4,FALSE)) -> 0.4 | Q58: 0 | R58: 0
A59: 49 | D59: 717300110226 | E59: CARTULINA SIMPLE 150 g DE 50 cm X 65 cm COLOR AZUL | I59: UNIDAD | J59: =IF(D59="","",VLOOKUP(D59,CATALOGO!$B$2:$E$333,4,FALSE)) -> 0.4 | Q59: 0 | R59: 0
A60: 50 | D60: 717300110035 | E60: CARTULINA SIMPLE 150 g DE 50 cm X 65 cm COLOR BLANCO | I60: UNIDAD | J60: =IF(D60="","",VLOOKUP(D60,CATALOGO!$B$2:$E$333,4,FALSE)) -> 0.4 | Q60: 0 | R60: 0
A61: 51 | D61: 717300110036 | E61: CARTULINA SIMPLE 150 g DE 50 cm X 65 cm COLOR CELESTE | I61: UNIDAD | J61: =IF(D61="","",VLOOKUP(D61,CATALOGO!$B$2:$E$333,4,FALSE)) -> 0.4 | Q61: 0 | R61: 0
A62: 52 | D62: 717300110313 | E62: CARTULINA SIMPLE 150 g DE 50 cm X 65 cm COLOR MARRÓN | I62: UNIDAD | J62: =IF(D62="","",VLOOKUP(D62,CATALOGO!$B$2:$E$333,4,FALSE)) -> 0.4 | Q62: 0 | R62: 0
A63: 53 | D63: 717300110135 | E63: CARTULINA SIMPLE 150 g DE 50 cm X 65 cm COLOR ROJO | I63: UNIDAD | J63: =IF(D63="","",VLOOKUP(D63,CATALOGO!$B$2:$E$333,4,FALSE)) -> 0.4 | Q63: 0 | R63: 0
A64: 54 | D64: 717300110092 | E64: CARTULINA SIMPLE 150 g DE 50 cm X 65 cm COLOR ROSADO | I64: UNIDAD | J64: =IF(D64="","",VLOOKUP(D64,CATALOGO!$B$2:$E$333,4,FALSE)) -> 0.4 | Q64: 0 | R64: 0
A65: 55 | D65: 717300110091 | E65: CARTULINA SIMPLE 150 g DE 50 cm X 65 cm COLOR VERDE | I65: UNIDAD | J65: =IF(D65="","",VLOOKUP(D65,CATALOGO!$B$2:$E$333,4,FALSE)) -> 0.4 | Q65: 0 | R65: 0
A66: 56 | D66: 717300110285 | E66: CARTULINA SIMPLE 150 g DE 70 cm X 100 cm COLOR BLANCO | I66: CIENTO | J66: =IF(D66="","",VLOOKUP(D66,CATALOGO!$B$2:$E$333,4,FALSE)) -> 3 | Q66: 0 | R66: 0
A67: 57 | D67: 717300110019 | E67: CARTULINA SIMPLE 150 g TAMAÑO A4 | I67: CIENTO | J67: =IF(D67="","",VLOOKUP(D67,CATALOGO!$B$2:$E$333,4,FALSE)) -> 3 | Q67: 0 | R67: 0
A68: 58 | D68: 717300110125 | E68: CARTULINA SIMPLE 150 g TAMAÑO A5 COLOR AMARILLO | I68: UNIDAD | J68: =IF(D68="","",VLOOKUP(D68,CATALOGO!$B$2:$E$333,4,FALSE)) -> 0.5 | Q68: 0 | R68: 0
A69: 59 | D69: 717300110121 | E69: CARTULINA SIMPLE 150 g TAMAÑO A5 COLOR BLANCO | I69: UNIDAD | J69: =IF(D69="","",VLOOKUP(D69,CATALOGO!$B$2:$E$333,4,FALSE)) -> 0.5 | Q69: 0 | R69: 0
A70: 60 | D70: 717300110123 | E70: CARTULINA SIMPLE 150 g TAMAÑO A5 COLOR CELESTE | I70: UNIDAD | J70: =IF(D70="","",VLOOKUP(D70,CATALOGO!$B$2:$E$333,4,FALSE)) -> 0.5 | Q70: 0 | R70: 0
A71: 61 | D71: 717300110122 | E71: CARTULINA SIMPLE 150 g TAMAÑO A5 COLOR ROSADO | I71: UNIDAD | J71: =IF(D71="","",VLOOKUP(D71,CATALOGO!$B$2:$E$333,4,FALSE)) -> 0.5 | Q71: 0 | R71: 0
A72: 62 | D72: 717300110124 | E72: CARTULINA SIMPLE 150 g TAMAÑO A5 COLOR VERDE | I72: UNIDAD | J72: =IF(D72="","",VLOOKUP(D72,CATALOGO!$B$2:$E$333,4,FALSE)) -> 0.5 | Q72: 0 | R72: 0
A73: 63 | D73: 717300110039 | E73: CARTULINA SIMPLE 160 g DE 50 cm X 65 cm | I73: UNIDAD | J73: =IF(D73="","",VLOOKUP(D73,CATALOGO!$B$2:$E$333,4,FALSE)) -> 0.4 | Q73: 0 | R73: 0
A74: 64 | D74: 717300110013 | E74: CARTULINA SIMPLE 160 g DE 61 cm X 86 cm | I74: UNIDAD | J74: =IF(D74="","",VLOOKUP(D74,CATALOGO!$B$2:$E$333,4,FALSE)) -> 0.4 | Q74: 0 | R74: 0
A75: 65 | D75: =IF(A75="","",VLOOKUP(A75,CATALOGO,2,FALSE)) -> 717300110070 | E75: CARTULINA SIMPLE 160 g DE 65 cm X 50 cm COLOR NEGRO | I75: =IF(A75="","",VLOOKUP(A75,CATALOGO,4,FALSE)) -> UNIDAD | J75: =IF(D75="","",VLOOKUP(D75,CATALOGO!$B$2:$E$333,4,FALSE)) -> 0.4 | Q75: 0 | R75: =IF(J75="","",(J75*Q75)) -> 0
A76: 66 | D76: 717300110009 | E76: =IF(A76="","",VLOOKUP(A76,CATALOGO,3,FALSE)) -> CARTULINA SIMPLE 165 g DE 65 cm X 50 cm | I76: UNIDAD | J76: =IF(D76="","",VLOOKUP(D76,CATALOGO!$B$2:$E$333,4,FALSE)) -> 0.4 | Q76: =IF(A76="","",(N76+O76+P76+K76+M76)) -> 0 | R76: 0
J77: =IF(D77="","",VLOOKUP(D77,CATALOGO!$B$2:$E$333,4,FALSE)) -> 
J78: =IF(D78="","",VLOOKUP(D78,CATALOGO!$B$2:$E$333,4,FALSE)) -> 
J79: =IF(D79="","",VLOOKUP(D79,CATALOGO!$B$2:$E$333,4,FALSE)) -> 
J80: =IF(D80="","",VLOOKUP(D80,CATALOGO!$B$2:$E$333,4,FALSE)) -> 
J81: =IF(D81="","",VLOOKUP(D81,CATALOGO!$B$2:$E$333,4,FALSE)) -> 
R82: =SUM(R11:R81) -> 360
